Workbook

Sheet Special Rates 2021-22
E4: 2021/22 Calculation of Special School Funding Rates
B8: DfE | E8: =IFERROR(VLOOKUP(DFENUM,DATA!B5:C28,2,0),"") -> 
B11: Section 1 - Commissioned Place numbers
B13: Academic Year | C13: Pre-16 | D13: Post-16 | E13: Weekday Residential | F13: Weekend Residential | H13: High Needs Place numbers as agreed annually with the Local Authority's SEN team
B15: 2020/21 | C15: =IFERROR(VLOOKUP(DFENUM,DATA!B5:K28,3,0),0) -> 0 | D15: =IFERROR(VLOOKUP(DFENUM,DATA!B5:K28,5,0),0) -> 0 | E15: =IFERROR(VLOOKUP(DFENUM,DATA!B5:K28,7,0),0) -> 0 | F15: =IFERROR(VLOOKUP(DFENUM,DATA!B5:K28,9,0),0) -> 0 | H15: Place numbers 2020-21 agreed November 2019
B17: 2021/22 | C17: =IFERROR(VLOOKUP(DFENUM,DATA!B5:K28,4,0),0) -> 0 | D17: =IFERROR(VLOOKUP(DFENUM,DATA!B5:K28,6,0),0) -> 0 | E17: =IFERROR(VLOOKUP(DFENUM,DATA!B5:K28,8,0),0) -> 0 | F17: =IFERROR(VLOOKUP(DFENUM,DATA!B5:K28,10,0),0) -> 0 | H17: Place numbers 2021-22 agreed November 2020
B19: Movement | C19: =C17-C15 -> 0 | D19: =D17-D15 -> 0 | E19: =E17-E15 -> 0 | F19: =F17-F15 -> 0
L23: Day Pupil | P23: Weekday | S23: Weekend
B24: Section 2 - Calculation of funding rate for April 2021 to March 2022
J25: MLD & SLCN | K25: SEMH | L25: SLD | M25: PD & PMLD | N25: ASD | P25: PD & PMLD | Q25: ASD | S25: PD & PMLD
A27: (A) | B27: April 2021 to August 2021 (Formula only excluding MFG)- | J27: =IFERROR(VLOOKUP(DFENUM,DATA!B5:AA28,11,0),0) -> 0 | K27: =IFERROR(VLOOKUP(DFENUM,DATA!B5:AA28,17,0),0) -> 0 | L27: =IFERROR(VLOOKUP(DFENUM,DATA!B5:AA28,20,0),0) -> 0 | M27: =IFERROR(VLOOKUP(DFENUM,DATA!B5:AA28,23,0),0) -> 0 | N27: =IFERROR(VLOOKUP(DFENUM,DATA!B5:AA28,14,0),0) -> 0 | P27: =IFERROR(VLOOKUP(DFENUM,DATA!B5:BX28,50,0),0) -> 0 | Q27: =IFERROR(VLOOKUP(DFENUM,DATA!B5:BX28,47,0),0) -> 0 | S27: =IFERROR(VLOOKUP(DFENUM,DATA!B5:BX28,53,0),0) -> 0
B28: Based on Academic Year 2020 to 2021. Data taken from 2020-21 Funding Rates Calculation.
A30: (B) | B30: September 2021 to March 2022 (Formula only excluding MFG) | J30: =IFERROR(VLOOKUP(DFENUM,DATA!B5:AA28,12,0),0) -> 0 | K30: =IFERROR(VLOOKUP(DFENUM,DATA!B5:AA28,18,0),0) -> 0 | L30: =IFERROR(VLOOKUP(DFENUM,DATA!B5:AA28,21,0),0) -> 0 | M30: =IFERROR(VLOOKUP(DFENUM,DATA!B5:AA28,24,0),0) -> 0 | N30: =IFERROR(VLOOKUP(DFENUM,DATA!B5:AA28,15,0),0) -> 0 | P30: =IFERROR(VLOOKUP(DFENUM,DATA!B5:BX28,52,0),0) -> 0 | Q30: =IFERROR(VLOOKUP(DFENUM,DATA!B5:BX28,49,0),0) -> 0 | S30: =IFERROR(VLOOKUP(DFENUM,DATA!B5:BX28,55,0),0) -> 0
B31: Based on Academic Year 2021 to 2022. See section 3 for calculation.
A33: (C) | B33: April 2021 to March 2022 | I33: = (A) X 5/12 | J33: =(J27*5/12)+(J30*7/12) -> 0 | K33: =(K27*5/12)+(K30*7/12) -> 0 | L33: =(L27*5/12)+(L30*7/12) -> 0 | M33: =(M27*5/12)+(M30*7/12) -> 0 | N33: =(N27*5/12)+(N30*7/12) -> 0 | P33: =IF(DFENUM=7073,P27,(P27*5/12)+(P30*7/12)) -> 0 | Q33: =IF(DFENUM=7073,Q27,(Q27*5/12)+(Q30*7/12)) -> 0 | S33: =IF(DFENUM=7073,S27,(S27*5/12)+(S30*7/12)) -> 0
B34: Based on Academic Year 2020 to 2021 (April 2021 to August 2021) 5/12's + | I34: +
B35: Academic Year 2021 to 2022 (September 2021 to March 2022) 7/12's | I35: (B) X 7/12
A37: (D) | B37: Final funding rate for financial Year 2020 to 2021 | J37: =IFERROR(VLOOKUP(DFENUM,DATA!B5:AA28,13,0),0) -> 0 | K37: =IFERROR(VLOOKUP(DFENUM,DATA!B5:AA28,19,0),0) -> 0 | L37: =IFERROR(VLOOKUP(DFENUM,DATA!B5:AA28,22,0),0) -> 0 | M37: =IFERROR(VLOOKUP(DFENUM,DATA!B5:AA28,25,0),0) -> 0 | N37: =IFERROR(VLOOKUP(DFENUM,DATA!B5:AA28,16,0),0) -> 0 | P37: =IFERROR(VLOOKUP(DFENUM,DATA!B5:BX28,51,0),0) -> 0 | Q37: =IFERROR(VLOOKUP(DFENUM,DATA!B5:BX28,48,0),0) -> 0 | S37: =IFERROR(VLOOKUP(DFENUM,DATA!B5:BX28,54,0),0) -> 0
A38: (E) | B38: MFG rate (D) X 100% | J38: =J37 -> 0 | K38: =K37 -> 0 | L38: =L37 -> 0 | M38: 0 | N38: 0 | P38: =P37 -> 0 | Q38: =Q37 -> 0 | S38: =S37 -> 0
J41: MLD & SLCN | K41: SEMH | L41: SLD | M41: PD & PMLD | N41: ASD | P41: PD & PMLD | Q41: ASD | S41: PD & PMLD
A42: (F) | B42: Final Rate (Greater of Formula (C) or MFG (E)) | G42: Formula (C) | J42: =J33 -> 0 | K42: =K33 -> 0 | L42: =L33 -> 0 | M42: =M33 -> 0 | N42: =N33 -> 0 | P42: =P33 -> 0 | Q42: =Q33 -> 0 | S42: =S33 -> 0
G43: MFG funding rate (E) | J43: =J38 -> 0 | K43: =K38 -> 0 | L43: =L38 -> 0 | M43: =M38 -> 0 | N43: =N38 -> 0 | P43: =P38 -> 0 | Q43: =Q38 -> 0 | S43: =S38 -> 0
G44: Amount of MFG if (E) is greater than ( C) | J44: =IF(J42>J43,0,J43-J42) -> 0 | K44: =IF(K42>K43,0,K43-K42) -> 0 | L44: 0 | M44: 0 | N44: 0 | P44: =IF(P42>P43,0,P43-P42) -> 0 | Q44: 0 | S44: =IF(S42>S43,0,S43-S42) -> 0
G45: Final Rate formula plus MFG | J45: =SUM(J42,J44) -> 0 | K45: =SUM(K42,K44) -> 0 | L45: =SUM(L42,L44) -> 0 | M45: =SUM(M42,M44) -> 0 | N45: =SUM(N42,N44) -> 0 | P45: =SUM(P42,P44) -> 0 | Q45: =SUM(Q42,Q44) -> 0 | S45: =SUM(S42,S44) -> 0
A46: (F) | B46: Place Plus Breakdown
G47: Element 1 & 2 | J47: 10000 | K47: 10000 | L47: 10000 | M47: 10000 | N47: 10000 | P47: =IF($P$45=0,0,10000) -> 0 | Q47: =IF($Q$45=0,0,10000) -> 0 | S47: =IF($S$45=0,0,10000) -> 0
G48: Element 3 | J48: =J45-J47 -> -10000 | K48: =K45-K47 -> -10000 | L48: -10000 | M48: -10000 | N48: -10000 | P48: =P45-P47 -> 0 | Q48: 0 | S48: =S45-S47 -> 0
G49: Total rate | J49: =SUM(J47:J48) -> 0 | K49: =SUM(K47:K48) -> 0 | L49: =SUM(L47:L48) -> 0 | M49: =SUM(M47:M48) -> 0 | N49: =SUM(N47:N48) -> 0 | P49: =SUM(P47:P48) -> 0 | Q49: =SUM(Q47:Q48) -> 0 | S49: =SUM(S47:S48) -> 0
B50: Section 3 - Pupil Led Elements
J51: MLD & SLCN | K51: SEMH | L51: SLD | M51: PD & PMLD | N51: ASD | P51: PD & PMLD | Q51: ASD | S51: PD & PMLD
B52: Day Rate | J52: 9508.155222 | K52: 15744.49072 | L52: 13651.3857 | M52: 20556.0535 | N52: 15744.49072 | P52: =IF($P$30=0,0,M52) -> 0 | Q52: =IF($Q$30=0,0,N52) -> 0 | S52: =IF($S$33=0,0,M52) -> 0
B53: Adjusted Rate due to School type (see note) | J53: 0 | K53: 0 | L53: 0 | M53: 0 | N53: =IFERROR(VLOOKUP(DFENUM,DATA!B5:BE28,27,0),0)-N52 -> -15744.49072 | P53: 0 | Q53: =IF($Q$30=0,0,N53) -> 0 | S53: 0
B54: Residential Weekday rate | J54: 0 | K54: 0 | L54: 0 | M54: 0 | N54: 0 | P54: =IF($P$30=0,0,IFERROR(VLOOKUP(DFENUM,DATA!B5:BX26,56,0),0)) -> 0 | Q54: =IF($Q$30=0,0,IFERROR(VLOOKUP(DFENUM,DATA!B5:BX26,56,0),0)) -> 0 | S54: =IF($S$33=0,0,IFERROR(VLOOKUP(DFENUM,DATA!B5:BX26,56,0),0)) -> 0
B55: Residential Weekend rate | J55: 0 | K55: 0 | L55: 0 | M55: 0 | N55: 0 | P55: 0 | Q55: 0 | S55: =IF($S$33=0,0,IFERROR(VLOOKUP(DFENUM,DATA!B5:BX26,57,0),0)) -> 0
B56: Subsidy on day places (catering) | J56: 113.5472 | K56: =$J56 -> 113.5472 | L56: =$J56 -> 113.5472 | M56: 113.5472 | N56: 113.5472 | P56: =IF($P$30=0,0,M56) -> 0 | Q56: =IF($Q$30=0,0,N56) -> 0 | S56: =IF($S$33=0,0,P56) -> 0
B57: Lunch Grant | J57: 11.7832 | K57: =$J57 -> 11.7832 | L57: 11.7832 | M57: 11.7832 | N57: 11.7832 | P57: =IF($P$30=0,0,M57) -> 0 | Q57: =IF($Q$30=0,0,N57) -> 0 | S57: =IF($S$33=0,0,P57) -> 0
B58: Specialist Schools Funding | J58: 97.7801105 | K58: 97.7801105 | L58: 97.7801105 | M58: 97.7801105 | N58: 97.7801105 | P58: =IF($P$30=0,0,M58) -> 0 | Q58: =IF($Q$30=0,0,N58) -> 0 | S58: 0
B59: Further Delegation | J59: 46.65623739 | K59: 46.65623739 | L59: 46.65623739 | M59: 46.65623739 | N59: 46.65623739 | P59: =IF($P$30=0,0,M59) -> 0 | Q59: =IF($Q$30=0,0,N59) -> 0 | S59: 0
B60: Residential Weekday Places Catering | J60: 0 | K60: 0 | L60: 0 | M60: 0 | N60: 0 | P60: =IF($P$30=0,0,1456.83) -> 0 | Q60: =IF($Q$30=0,0,1456.83) -> 0 | S60: 0
B61: Residential Weekend Places Catering | J61: 0 | K61: 0 | L61: 0 | M61: 0 | N61: 0 | P61: 0 | Q61: 0 | S61: =IF($S$33=0,0,2195.96) -> 0
B62: London Fringe Day Pupil | J62: =IFERROR(VLOOKUP(DFENUM,DATA!B5:BE28,29,0),0) -> 0 | K62: =IFERROR(VLOOKUP(DFENUM,DATA!B5:BE28,30,0),0) -> 0 | L62: =IFERROR(VLOOKUP(DFENUM,DATA!B5:BE28,31,0),0) -> 0 | M62: =IFERROR(VLOOKUP(DFENUM,DATA!B5:BE28,32,0),0) -> 0 | N62: =IFERROR(VLOOKUP(DFENUM,DATA!B5:BE28,33,0),0) -> 0 | P62: 0 | Q62: 0 | S62: 0
B63: London Fringe Weekday Residential Pupil | J63: 0 | K63: 0 | L63: 0 | M63: 0 | N63: 0 | P63: =IF($P$30=0,0,IFERROR(VLOOKUP(DFENUM,DATA!B5:BX28,58,0),0)) -> 0 | Q63: =IF($Q$30=0,0,IFERROR(VLOOKUP(DFENUM,DATA!B5:BX28,58,0),0)) -> 0 | S63: 0
B64: London Fringe Weekend Residential Pupil | J64: 0 | K64: 0 | L64: 0 | M64: 0 | N64: 0 | P64: 0 | Q64: 0 | S64: =IF($S$33=0,0,IFERROR(VLOOKUP(DFENUM,DATA!B5:BX28,59,0),0)) -> 0
B66: Rate for Pupil Led Elements | J66: =SUM(J52:J65) -> 9777.92197 | K66: =SUM(K52:K65) -> 16014.25747 | L66: =SUM(L52:L65) -> 13921.15245 | M66: =SUM(M52:M65) -> 20825.82025 | N66: =SUM(N52:N65) -> 269.7667479 | P66: =SUM(P52:P65) -> 0 | Q66: =SUM(Q52:Q65) -> 0 | S66: =SUM(S52:S65) -> 0
B68: Section 4 - School Led Elements
L69: Need Type
F70: Units | G70: Rate | H70: Total | I70: Places | J70: MLD & SLCN | K70: SEMH | L70: SLD | M70: PD & PMLD | N70: ASD | P70: PD & PMLD | Q70: ASD | S70: PD & PMLD
B71: Lump Sum Day | F71: =IF(DFENUM>0,1,0) -> 0 | G71: 370989.7672 | H71: =F71*G71 -> 0 | I71: =IF(DFENUM=7005,168, IF(DFENUM=7006,168, $C$17+$D$17)) -> 0 | J71: =IF(I71=0,0,H71/I71) -> 0 | K71: =$J71 -> 0 | L71: =$J71 -> 0 | M71: 0 | N71: 0 | P71: =IF($P$30=0,0,M71) -> 0 | Q71: =IF($Q$30=0,0,N71) -> 0 | S71: =IF($S$33=0,0,M71) -> 0
B72: Lump Sum Catering Day | F72: =IF(DFENUM>0,1,0) -> 0 | G72: 2142.4 | H72: =F72*G72 -> 0 | I72: 0 | J72: =IF(I72=0,0,H72/I72) -> 0 | K72: =$J72 -> 0 | L72: 0 | M72: 0 | N72: 0 | P72: 0 | Q72: 0 | S72: =IF($S$33=0,0,M72) -> 0
B73: Specialist Schools Funding- Lump Sum | F73: =IF(DFENUM>0,1,0) -> 0 | G73: 12659.12917 | H73: 0 | I73: 0 | J73: 0 | K73: 0 | L73: 0 | M73: 0 | N73: 0 | P73: 0 | Q73: 0 | S73: 0
B74: Free Mid-day Meals | F74: =IFERROR(VLOOKUP(DFENUM,DATA!$B$5:$BE$28,43,0),0)*I74 -> 0 | G74: 444.548 | H74: 0 | I74: 0 | J74: 0 | K74: 0 | L74: 0 | M74: 0 | N74: 0 | P74: 0 | Q74: 0 | S74: 0
B75: Gross Day Floor Area (m2) | F75: =IFERROR(VLOOKUP(DFENUM,DATA!$B$5:$BE$28,37,0),0) -> 0 | G75: 32.13599762 | H75: =F75*G75 -> 0 | I75: 0 | J75: 0 | K75: 0 | L75: 0 | M75: 0 | N75: 0 | P75: 0 | Q75: 0 | S75: 0
B76: Grounds Site Area (hectares) | F76: =IFERROR(VLOOKUP(DFENUM,DATA!$B$5:$BE$28,40,0),0) -> 0 | G76: 1126.9024 | H76: 0 | I76: 0 | J76: 0 | K76: 0 | L76: 0 | M76: 0 | N76: 0 | P76: 0 | Q76: 0 | S76: 0
B77: Rentals | F77: =IF(IFERROR(VLOOKUP(DFENUM,DATA!$B$5:$BE$28,41,0),0)>0,1,0) -> 0 | G77: =IFERROR(VLOOKUP(DFENUM,DATA!$B$5:$BE$26,41,0),0) -> 0 | H77: 0 | I77: 0 | J77: 0 | K77: 0 | L77: 0 | M77: 0 | N77: 0 | P77: 0 | Q77: 0 | S77: 0
B78: Hydrotherapy Pool | F78: =IFERROR(VLOOKUP(DFENUM,DATA!$B$5:$BE$28,42,0),0) -> 0 | G78: 5356 | H78: 0 | I78: 0 | J78: 0 | K78: 0 | L78: 0 | M78: 0 | N78: 0 | P78: 0 | Q78: 0 | S78: 0
B79: Split site- Band 1 | F79: =IFERROR(VLOOKUP(DFENUM,DATA!$B$5:$BE$28,45,0),0) -> 0 | G79: 4689.7136 | H79: 0 | I79: 0 | J79: 0 | K79: 0 | L79: 0 | M79: 0 | N79: 0 | P79: 0 | Q79: 0 | S79: 0
B80: Split site - Band 2 | F80: =IFERROR(VLOOKUP(DFENUM,DATA!$B$5:$BE$28,46,0),0) -> 0 | G80: 41163.0024 | H80: 0 | I80: 0 | J80: 0 | K80: 0 | L80: 0 | M80: 0 | N80: 0 | P80: 0 | Q80: 0 | S80: 0
B81: Residential Floor Area Weekday (m2) | F81: =IFERROR(VLOOKUP(DFENUM,DATA!$B$5:$BE$28,38,0),0) -> 0 | G81: 53.55950991 | H81: 0 | I81: =E17 -> 0 | J81: 0 | K81: 0 | L81: 0 | M81: 0 | N81: 0 | P81: =IF($P$30=0,0,((F81*G81)/I81)) -> 0 | Q81: =IF($Q$30=0,0,((F81*G81)/I81)) -> 0 | S81: =IF($S$33=0,0,((F81*G81)/I81)) -> 0
B82: Residential Floor Area Weekend (m2) | F82: =IFERROR(VLOOKUP(DFENUM,DATA!$B$5:$BE$28,39,0),0) -> 0 | G82: 69.62790163 | H82: 0 | I82: =E17 -> 0 | J82: 0 | K82: 0 | L82: 0 | M82: 0 | N82: 0 | P82: =IF($P$30=0,0,((F82*G82)/I82)) -> 0 | Q82: =IF($Q$30=0,0,((F82*G82)/I82)) -> 0 | S82: =IF($S$33=0,0,((F82*G82)/I82)) -> 0
B83: Lump Sum Residential | F83: =IF(SUM(P33:S33)>0,1,0) -> 0 | G83: 175060.86 | H83: 0 | I83: =E17 -> 0 | J83: 0 | K83: 0 | L83: 0 | M83: 0 | N83: 0 | P83: =IF($P$30=0,0,((F83*G83)/I83)) -> 0 | Q83: =IF($Q$30=0,0,((F83*G83)/I83)) -> 0 | S83: =IF($S$33=0,0,((F83*G83)/I83)) -> 0
B84: London Fringe Day Pupils | F84: =IFERROR(VLOOKUP(DFENUM,DATA!$B$5:$BE$28,44,0),0) -> 0 | G84: 4128.6726 | H84: 0 | I84: =IF(DFENUM=7005,168, IF(DFENUM=7006,168, $C$17+$D$17)) -> 0 | J84: 0 | K84: 0 | L84: 0 | M84: 0 | N84: 0 | P84: 0 | Q84: 0 | S84: 0
B85: London Fringe Residential Pupils | F85: 0 | G85: 0 | H85: 0 | I85: =E17 -> 0 | J85: 0 | K85: 0 | L85: 0 | M85: 0 | N85: 0 | P85: =IF($P$30=0,0,IFERROR(VLOOKUP(DFENUM,DATA!B5:BX28,60,0),0)) -> 0 | Q85: =IF($Q$30=0,0,IFERROR(VLOOKUP(DFENUM,DATA!B5:BX28,60,0),0)) -> 0 | S85: =IF($S$33=0,0,IFERROR(VLOOKUP(DFENUM,DATA!B5:BX28,61,0),0)) -> 0
B87: Rate for School Led Elements | J87: =SUM(J71:J86) -> 0 | K87: =SUM(K71:K86) -> 0 | L87: =SUM(L71:L86) -> 0 | M87: =SUM(M71:M86) -> 0 | N87: =SUM(N71:N86) -> 0 | P87: =SUM(P71:P86) -> 0 | Q87: =SUM(Q71:Q86) -> 0 | S87: =SUM(S71:S86) -> 0
L91: Need Type
B92: Total Formula Rate | J92: MLD & SLCN | K92: SEMH | L92: SLD | M92: PD & PMLD | N92: ASD | P92: PD & PMLD | Q92: ASD | S92: PD & PMLD
J93: =J66+J87 -> 9777.92197 | K93: =K66+K87 -> 16014.25747 | L93: =L66+L87 -> 13921.15245 | M93: =M66+M87 -> 20825.82025 | N93: =N66+N87 -> 269.7667479 | P93: =P66+P87 -> 0 | Q93: =Q66+Q87 -> 0 | S93: =S66+S87 -> 0
J94: =ROUND(J93-mldnew,1) -> 9777.9 | K94: =ROUND(K93-besdnew,1) -> 16014.3 | L94: =ROUND(L93-sldnew,1) -> 13921.2 | M94: =ROUND(M93-pdnew,1) -> 20825.8 | N94: =ROUND(N93-asdnew,1) -> 269.8 | P94: =ROUND(P93-pdweekdaynew,1) -> 0 | Q94: =ROUND(Q93-asdweekdaynew,1) -> 0 | S94: =ROUND(S93-pdweekendnew,1) -> 0
N95: =IF(AND(J94=0,K94=0,L94=0,M94=0,N94=0),"OK","ERROR") -> ERROR | S95: =IF(AND(P94=0,Q94=0,S94=0),"OK","ERROR") -> OK
S96: =IF(AND(N95="OK",S95="OK"),"OK","ERROR") -> ERROR
B98: Note
B99: ASD
B100: - All ASD pupils in Stone Bay are funded at ASD2
B101: - 10% of all ASD places in C & I and PSCN Special Schools are funded at ASD2
B109: Section 5 - Analysis of Rate Changes
D112: 2020/21 Financial Year | F112: 2021/22 Financial Year | H112: Movement £ | I112: Movement %
B113: Pupil Led Elements
C114: MLD & SLCN | E114: =IFERROR(VLOOKUP(DFENUM,DATA!$B:$CG,63,0),"") ->  | G114: =IFERROR(VLOOKUP(DFENUM,DATA!$B:$CG,74,0),"") ->  | H114: =IFERROR(G114-E114,"") ->  | I114: =IFERROR(H114/E114,"") -> 
C115: SEMH | E115: =IFERROR(VLOOKUP(DFENUM,DATA!B:CG,64,0),"") ->  | G115: =IFERROR(VLOOKUP(DFENUM,DATA!$B:$CG,75,0),"") ->  | H115: =IFERROR(G115-E115,"") ->  | I115: =IFERROR(H115/E115,"") -> 
C116: SLD | E116: =IFERROR(VLOOKUP(DFENUM,DATA!B:CG,65,0),"") ->  | G116: =IFERROR(VLOOKUP(DFENUM,DATA!$B:$CG,76,0),"") ->  | H116: =IFERROR(G116-E116,"") ->  | I116: =IFERROR(H116/E116,"") ->  | K116: This will always be 3% apart from for the SEMH rate which will be substantially more due to the removal of the SEMH 1 rate
C117: PD & PMLD | E117: =IFERROR(VLOOKUP(DFENUM,DATA!B:CG,66,0),"") ->  | G117: =IFERROR(VLOOKUP(DFENUM,DATA!$B:$CG,77,0),"") ->  | H117: =IFERROR(G117-E117,"") ->  | I117: =IFERROR(H117/E117,"") -> 
C118: ASD | E118: =IFERROR(VLOOKUP(DFENUM,DATA!B:CG,67,0),"") ->  | G118: =IFERROR(VLOOKUP(DFENUM,DATA!$B:$CG,78,0),"") ->  | H118: =IFERROR(G118-E118,"") ->  | I118: =IFERROR(H118/E118,"") -> 
B119: School Led Elements
C120: All | E120: =IFERROR(VLOOKUP(DFENUM,DATA!B:CG,68,0),"") ->  | G120: =IFERROR(VLOOKUP(DFENUM,DATA!$B:$CG,79,0),"") ->  | H120: =IFERROR(G120-E120,"") ->  | I120: =IFERROR(H120/E120,"") -> 
B121: Minimum Funding Guarantee
C122: MLD & SLCN | E122: =IFERROR(VLOOKUP(DFENUM,DATA!B:CG,69,0),"") ->  | G122: =IFERROR(VLOOKUP(DFENUM,DATA!$B:$CG,80,0),"") ->  | H122: =IFERROR(G122-E122,"") ->  | I122: =IFERROR(H122/E122,"") -> 
C123: SEMH | E123: =IFERROR(VLOOKUP(DFENUM,DATA!B:CG,70,0),"") ->  | G123: =IFERROR(VLOOKUP(DFENUM,DATA!$B:$CG,81,0),"") ->  | H123: =IFERROR(G123-E123,"") ->  | I123: =IFERROR(H123/E123,"") -> 
C124: SLD | E124: =IFERROR(VLOOKUP(DFENUM,DATA!B:CG,71,0),"") ->  | G124: =IFERROR(VLOOKUP(DFENUM,DATA!$B:$CG,82,0),"") ->  | H124: =IFERROR(G124-E124,"") ->  | I124: =IFERROR(H124/E124,"") ->  | K124: This can vary but will be reduced on account of increases in the above two elements
C125: PD & PMLD | E125: =IFERROR(VLOOKUP(DFENUM,DATA!B:CG,72,0),"") ->  | G125: =IFERROR(VLOOKUP(DFENUM,DATA!$B:$CG,83,0),"") ->  | H125: =IFERROR(G125-E125,"") ->  | I125: =IFERROR(H125/E125,"") -> 
C126: ASD | E126: =IFERROR(VLOOKUP(DFENUM,DATA!B:CG,73,0),"") ->  | G126: =IFERROR(VLOOKUP(DFENUM,DATA!$B:$CG,84,0),"") ->  | H126: =IFERROR(G126-E126,"") ->  | I126: =IFERROR(H126/E126,"") -> 
B129: Section 6 - 2021/22 Nursery Provision Lump Sum Calculation
B131: Rates
B133: Leadership Lump Sum per provision | E133: 53560
B134: Day Rate per FTE (see breakdown) | E134: 9299.87
B136: Calculation
D138: Units | E138: Rate | F138: Total
B139: Leadership Lump Sum | D139: =IF(D140>9,2,IF(D140>0,1,0)) -> 0 | E139: =E133 -> 53560 | F139: =D139*E139 -> 0
B140: Day Rate | D140: =IFERROR(VLOOKUP('Special Rates 2021-22'!DFENUM,DATA!B:BK,62,0),0) -> 0 | E140: =E134 -> 9299.87 | F140: =D140*E140 -> 0
E142: Total Funding at this provision: | F142: =IFERROR(ROUND(F140+F139,0),"TBC") -> 0

Sheet DATA (hidden)
B1: 1 | C1: 2 | D1: 3 | E1: 4 | F1: 5 | G1: 6 | H1: 7 | I1: 8 | J1: 9 | K1: 10 | L1: 11 | M1: 12 | N1: 13 | O1: 14 | P1: 15 | Q1: 16 | R1: 17 | S1: 18 | T1: 19 | U1: 20 | V1: 21 | W1: 22 | X1: 23 | Y1: 24 | Z1: 25 | AA1: 26 | AB1: 27 | AC1: 28 | AD1: 29 | AE1: 30 | AF1: 31 | AG1: 32 | AH1: 33 | AI1: 34 | AJ1: 35 | AK1: 36 | AL1: 37 | AM1: 38 | AN1: 39 | AO1: 40 | AP1: 41 | AQ1: 42 | AR1: 43 | AS1: 44 | AT1: 45 | AU1: 46 | AV1: 47 | AW1: 48 | AX1: 49 | AY1: 50 | AZ1: 51 | BA1: 52 | BB1: 53 | BC1: 54 | BD1: 55 | BE1: 56 | BF1: 57 | BG1: 58 | BH1: 59 | BI1: 60 | BJ1: 61 | BK1: 62 | BL1: 63 | BM1: 64 | BN1: 65 | BO1: 66 | BP1: 67 | BQ1: 68 | BR1: 69 | BS1: 70 | BT1: 71 | BU1: 72 | BV1: 73 | BW1: 74 | BX1: 75 | BY1: 76 | BZ1: 77 | CA1: 78 | CB1: 79 | CC1: 80 | CD1: 81 | CE1: 82 | CF1: 83 | CG1: 84
D2: Places | L2: Rates | AV2: Residential Rates | BL2: 2020/21 Financial Year | BW2: 2021/22 Financial Year
D3: Pre-16 | F3: Post-16 | H3: Weekday | J3: Weekend | L3: MLD & SLCN | O3: ASD | R3: SEMH | U3: SLD | X3: PD & PMLD | AD3: London Fringe | AV3: ASD Weekday | AY3: PD Weekday | BB3: PD Weekend | BE3: Residential Winter Rates | BG3: Residential Pupil Fringe | BI3: Residential School Fringe | BL3: Pupil Led | BQ3: School | BR3: MFG | BW3: Pupil Led | CB3: School | CC3: MFG
B4: DFE | C4: School | D4: 20/21 | E4: 21/22 | F4: 20/21 | G4: 21/22 | H4: 20/21 | I4: 21/22 | J4: 20/21 | K4: 21/22 | L4: Summer | M4: Winter | N4: Old Financial Year | O4: Summer | P4: Winter | Q4: Old Financial Year | R4: Summer | S4: Winter | T4: Old Financial Year | U4: Summer | V4: Winter | W4: Old Financial Year | X4: Summer | Y4: Winter | Z4: Old Financial Year | AB4: ASD Rate | AC4: SEMH Rate | AD4: MLD & SLCN | AE4: SEMH | AF4: SLD | AG4: PD & PMLD | AH4: ASD | AI4: Residential weekdayASD | AJ4: Residential weekdayPD & PMLD | AK4: Residential WeekendPD & PMLD | AL4: Gross Day Floor Area | AM4: Residential floor area weekday | AN4: Residential floor area weekend | AO4: Grounds site area | AP4: Rentals | AQ4: Hydrotherapy Pool | AR4: No of FSM | AS4: London Fringe | AT4: Split site- Band 1 | AU4: Split site - Band 2 | AV4: Summer | AW4: Last Financial Year | AX4: Winter | AY4: Summer | AZ4: Last Financial Year | BA4: Winter | BB4: Summer | BC4: Last Financial Year | BD4: Winter | BE4: Weekday | BF4: Weekend | BG4: Weekday | BH4: Weekend | BI4: Weekday | BJ4: Weekend | BK4: Nursery FTE | BL4: MLD&SLCN | BM4: SEMH | BN4: SLD | BO4: PD&PMLD | BP4: ASD | BQ4: All | BR4: MLD&SLCN | BS4: SEMH | BT4: SLD | BU4: PD&PMLD | BV4: ASD | BW4: MLD&SLCN | BX4: SEMH | BY4: SLD | BZ4: PD&PMLD | CA4: ASD | CB4: All | CC4: MLD&SLCN | CD4: SEMH | CE4: SLD | CF4: PD&PMLD | CG4: ASD
B5: 7002 | C5: Broomhill Bank School | D5: 218 | E5: 218 | F5: 100 | G5: 100 | H5: 23 | I5: 23 | J5: 0 | K5: 0 | L5: 12407.4984 | M5: 12451.11727 | N5: 14529.83 | O5: 19447.38487 | P5: 19491.00375 | Q5: 20545.71 | R5: 18658.9018 | S5: 18702.52067 | T5: 15687.06 | U5: 16575.27466 | V5: 16618.89353 | W5: 18083.41 | X5: 23520.82216 | Y5: 23564.44104 | Z5: 24009.61 | AB5: 16504.90675 | AC5: 15744.49072 | AD5: 43.29026699 | AE5: 58.35816694 | AF5: 67.83605067 | AG5: 108.7157519 | AH5: 86.42521335 | AI5: 942.1406203 | AJ5: 0 | AK5: 0 | AL5: 11140.893 | AM5: 632.1069985 | AN5: 0 | AO5: 10.685 | AP5: 0 | AQ5: 0 | AR5: 0.2487309645 | AS5: 1 | AT5: 0 | AU5: 1 | AV5: 57307.84138 | AW5: 59779.4 | AX5: 57351.46026 | AY5: 0 | AZ5: 0 | BA5: 0 | BB5: 0 | BC5: 0 | BD5: 0 | BE5: 26464.59601 | BF5: 0 | BG5: 942.1406203 | BH5: 0 | BI5: 12.98324717 | BJ5: 0 | BL5: 9530.705499 | BM5: 11533.66121 | BN5: 13577.09022 | BO5: 20320.34022 | BP5: 16365.54674 | BQ5: 2859.307009 | BR5: 2139.818687 | BS5: 1294.08969 | BT5: 1647.015953 | BU5: 829.9612193 | BV5: 1320.851966 | BW5: 9821.212237 | BX5: 16072.61563 | BY5: 13988.9885 | BZ5: 20934.536 | CA5: 16861.09871 | CB5: 2611.730505 | CC5: 2096.887258 | CD5: 0 | CE5: 1482.690998 | CF5: 463.3434951 | CG5: 1072.880781
B6: 7005 | C6: Aspire School | D6: 32 | E6: 88 | F6: 0 | G6: 0 | H6: 0 | I6: 0 | J6: 0 | K6: 0 | L6: 12851.45331 | M6: 12851.45331 | N6: 12406.19 | O6: 19848.20484 | P6: 19848.20484 | Q6: 19199.19 | R6: 19087.78881 | S6: 19087.78881 | T6: 14395.19 | U6: 16994.68379 | V6: 16994.68379 | W6: 16429.19 | X6: 23899.35159 | Y6: 23899.35159 | Z6: 23132.19 | AB6: 16504.90675 | AC6: 15744.49072 | AD6: 0 | AE6: 0 | AF6: 0 | AG6: 0 | AH6: 0 | AI6: 0 | AJ6: 0 | AK6: 0 | AL6: 3227 | AM6: 0 | AN6: 0 | AO6: 1.7432 | AP6: 0 | AQ6: 0 | AR6: 0.3333333333 | AS6: 0 | AT6: 0 | AU6: 0 | AV6: 0 | AW6: 0 | AX6: 0 | AY6: 0 | AZ6: 0 | BA6: 0 | BB6: 0 | BC6: 0 | BD6: 0 | BE6: 0 | BF6: 0 | BG6: 0 | BH6: 0 | BI6: 0 | BJ6: 0 | BL6: 0 | BM6: 0 | BN6: 0 | BO6: 0 | BP6: 0 | BQ6: 0 | BR6: 0 | BS6: 0 | BT6: 0 | BU6: 0 | BV6: 0 | BW6: 9777.92197 | BX6: 16014.25747 | BY6: 13921.15245 | BZ6: 20825.82025 | CA6: 16774.6735 | CB6: 3073.531339 | CC6: 0 | CD6: 0 | CE6: 0 | CF6: 0 | CG6: 0
B7: 7006 | C7: Snowfields Academy | D7: 60 | E7: 96 | F7: 0 | G7: 0 | H7: 0 | I7: 0 | J7: 0 | K7: 0 | L7: 12890.69688 | M7: 12890.69688 | N7: 12450.83 | O7: 19887.44841 | P7: 19887.44841 | Q7: 19243.83 | R7: 19127.03238 | S7: 19127.03238 | T7: 14439.83 | U7: 17033.92736 | V7: 17033.92736 | W7: 16473.83 | X7: 23938.59516 | Y7: 23938.59516 | Z7: 23176.83 | AB7: 16504.90675 | AC7: 15744.49072 | AD7: 0 | AE7: 0 | AF7: 0 | AG7: 0 | AH7: 0 | AI7: 0 | AJ7: 0 | AK7: 0 | AL7: 3480 | AM7: 0 | AN7: 0 | AO7: 1.383 | AP7: 0 | AQ7: 0 | AR7: 0.3181818182 | AS7: 0 | AT7: 0 | AU7: 0 | AV7: 0 | AW7: 0 | AX7: 0 | AY7: 0 | AZ7: 0 | BA7: 0 | BB7: 0 | BC7: 0 | BD7: 0 | BE7: 0 | BF7: 0 | BG7: 0 | BH7: 0 | BI7: 0 | BJ7: 0 | BL7: 0 | BM7: 0 | BN7: 0 | BO7: 0 | BP7: 0 | BQ7: 0 | BR7: 0 | BS7: 0 | BT7: 0 | BU7: 0 | BV7: 0 | BW7: 9777.92197 | BX7: 16014.25747 | BY7: 13921.15245 | BZ7: 20825.82025 | CA7: 16774.6735 | CB7: 3112.774913 | CC7: 0 | CD7: 0 | CE7: 0 | CF7: 0 | CG7: 0
B8: 7021 | C8: Valence School | D8: 72 | E8: 80 | F8: 33 | G8: 31 | H8: 46 | I8: 46 | J8: 18 | K8: 18 | L8: 16737.70476 | M8: 16329.0089 | N8: 16230.93 | O8: 23101.3772 | P8: 22692.68133 | Q8: 22409.25 | R8: 23023.46297 | S8: 22614.76711 | T8: 18267.24 | U8: 20961.44541 | V8: 20552.74955 | W8: 20331.65 | X8: 28000.19863 | Y8: 27591.50277 | Z8: 27165.39 | AB8: 15744.49072 | AC8: 15744.49072 | AD8: 165.5509854 | AE8: 214.9736973 | AF8: 246.0611559 | AG8: 380.1465759 | AH8: 292.8879204 | AI8: 0 | AJ8: 1218.428572 | AK8: 1725.61305 | AL8: 8799 | AM8: 0 | AN8: 1924 | AO8: 18.322 | AP8: 0 | AQ8: 1 | AR8: 0.2048192771 | AS8: 1 | AT8: 0 | AU8: 0 | AV8: 0 | AW8: 0 | AX8: 0 | AY8: 77658.05951 | AZ8: 75376.91 | BA8: 77249.36364 | BB8: 104490.6803 | BC8: 101427.99 | BD8: 104081.9845 | BE8: 40644.81334 | BF8: 25586.30835 | BG8: 1218.428572 | BH8: 1725.61305 | BI8: 37.19524865 | BJ8: 37.19524865 | BL8: 9653.857238 | BM8: 11690.16713 | BN8: 13754.57631 | BO8: 20588.3173 | BP8: 15832.17999 | BQ8: 6577.072834 | BR8: 0 | BS8: 0 | BT8: 0 | BU8: 0 | BV8: 0 | BW8: 9943.472955 | BX8: 16229.23116 | BY8: 14167.2136 | BZ8: 21205.96682 | CA8: 16307.14539 | CB8: 6555.825888 | CC8: 0 | CD8: 0 | CE8: 0 | CF8: 0 | CG8: 0
B9: 7032 | C9: Bower Grove School | D9: 214 | E9: 225 | F9: 0 | G9: 0 | H9: 0 | I9: 0 | J9: 0 | K9: 0 | L9: 12419.07823 | M9: 12336.92388 | N9: 12050.22 | O9: 18655.41373 | P9: 18573.25938 | Q9: 18104.92 | R9: 18655.41373 | S9: 18573.25938 | T9: 14446.49 | U9: 16562.30871 | V9: 16480.15436 | W9: 16072.78 | X9: 23466.97651 | Y9: 23384.82216 | Z9: 22776.34 | AB9: 15744.49072 | AC9: 15744.49072 | AD9: 0 | AE9: 0 | AF9: 0 | AG9: 0 | AH9: 0 | AI9: 0 | AJ9: 0 | AK9: 0 | AL9: 4093 | AM9: 0 | AN9: 0 | AO9: 2.1496 | AP9: 0 | AQ9: 0 | AR9: 0.5132743363 | AS9: 0 | AT9: 1 | AU9: 0 | AV9: 0 | AW9: 0 | AX9: 0 | AY9: 0 | AZ9: 0 | BA9: 0 | BB9: 0 | BC9: 0 | BD9: 0 | BE9: 0 | BF9: 0 | BG9: 0 | BH9: 0 | BI9: 0 | BJ9: 0 | BL9: 9493.128126 | BM9: 11889.39455 | BN9: 13515.68199 | BO9: 20219.24296 | BP9: 15547.82278 | BQ9: 2557.093136 | BR9: 0 | BS9: 0 | BT9: 0 | BU9: 0 | BV9: 0 | BW9: 9777.92197 | BX9: 16014.25747 | BY9: 13921.15245 | BZ9: 20825.82025 | CA9: 16014.25747 | CB9: 2593.232892 | CC9: 0 | CD9: 0 | CE9: 0 | CF9: 0 | CG9: 0
B10: 7033 | C10: St Anthony's School | D10: 98 | E10: 98 | F10: 0 | G10: 0 | H10: 0 | I10: 0 | J10: 0 | K10: 0 | L10: 15151.34584 | M10: 15195.73504 | N10: 14706.98 | O10: 21387.68134 | P10: 21432.07054 | Q10: 20761.67 | R10: 21387.68134 | S10: 21432.07054 | T10: 17037.88 | U10: 19294.57632 | V10: 19338.96552 | W10: 18729.53 | X10: 26199.24412 | Y10: 26243.63332 | Z10: 25433.09 | AB10: 15744.49072 | AC10: 15744.49072 | AD10: 0 | AE10: 0 | AF10: 0 | AG10: 0 | AH10: 0 | AI10: 0 | AJ10: 0 | AK10: 0 | AL10: 3614 | AM10: 0 | AN10: 0 | AO10: 1.54 | AP10: 0 | AQ10: 0 | AR10: 0.6261682243 | AS10: 0 | AT10: 0 | AU10: 0 | AV10: 0 | AW10: 0 | AX10: 0 | AY10: 0 | AZ10: 0 | BA10: 0 | BB10: 0 | BC10: 0 | BD10: 0 | BE10: 0 | BF10: 0 | BG10: 0 | BH10: 0 | BI10: 0 | BJ10: 0 | BL10: 9493.128126 | BM10: 11824.03442 | BN10: 13515.68199 | BO10: 20219.24296 | BP10: 15547.82278 | BQ10: 5213.849047 | BR10: 0 | BS10: 0 | BT10: 0 | BU10: 0 | BV10: 0 | BW10: 9777.92197 | BX10: 16014.25747 | BY10: 13921.15245 | BZ10: 20825.82025 | CA10: 16014.25747 | CB10: 5399.317571 | CC10: 0 | CD10: 0 | CE10: 0 | CF10: 0 | CG10: 0
B11: 7039 | C11: The Ifield School | D11: 210 | E11: 212 | F11: 40 | G11: 37 | H11: 0 | I11: 0 | J11: 0 | K11: 0 | L11: 12216.32944 | M11: 12416.44464 | N11: 11853.76 | O11: 19213.08097 | P11: 19413.19617 | Q11: 18646.72 | R11: 18452.66494 | S11: 18652.78013 | T11: 13842.09 | U11: 16359.55992 | V11: 16559.67511 | W11: 15876.31 | X11: 23264.22772 | Y11: 23464.34291 | Z11: 22579.88 | AB11: 16504.90675 | AC11: 15744.49072 | AD11: 0 | AE11: 0 | AF11: 0 | AG11: 0 | AH11: 0 | AI11: 0 | AJ11: 0 | AK11: 0 | AL11: 4274.139996 | AM11: 0 | AN11: 0 | AO11: 6.22 | AP11: 75000 | AQ11: 1 | AR11: 0.3775510204 | AS11: 0 | AT11: 1 | AU11: 0 | AV11: 0 | AW11: 0 | AX11: 0 | AY11: 0 | AZ11: 0 | BA11: 0 | BB11: 0 | BC11: 0 | BD11: 0 | BE11: 0 | BF11: 0 | BG11: 0 | BH11: 0 | BI11: 0 | BJ11: 0 | BL11: 9493.128126 | BM11: 11481.4548 | BN11: 13515.68199 | BO11: 20219.24296 | BP11: 16286.09078 | BQ11: 2360.632947 | BR11: 0 | BS11: 0 | BT11: 0 | BU11: 0 | BV11: 0 | BW11: 9777.92197 | BX11: 16014.25747 | BY11: 13921.15245 | BZ11: 20825.82025 | CA11: 16774.6735 | CB11: 2555.141335 | CC11: 0 | CD11: 0 | CE11: 0 | CF11: 0 | CG11: 0
B12: 7040 | C12: Foreland Fields School | D12: 188 | E12: 191 | F12: 32 | G12: 33 | H12: 0 | I12: 0 | J12: 0 | K12: 0 | L12: 12377.45388 | M12: 12366.863 | N12: 12016.33 | O12: 19374.20541 | P12: 19363.61453 | Q12: 18809.29 | R12: 18613.78938 | S12: 18603.1985 | T12: 14004.66 | U12: 16520.68436 | V12: 16510.09347 | W12: 16038.89 | X12: 23425.35216 | Y12: 23414.76128 | Z12: 22742.45 | AB12: 16504.90675 | AC12: 15744.49072 | AD12: 0 | AE12: 0 | AF12: 0 | AG12: 0 | AH12: 0 | AI12: 0 | AJ12: 0 | AK12: 0 | AL12: 4331 | AM12: 0 | AN12: 0 | AO12: 4.3045 | AP12: 0 | AQ12: 1 | AR12: 0.4022346369 | AS12: 0 | AT12: 1 | AU12: 0 | AV12: 0 | AW12: 0 | AX12: 0 | AY12: 0 | AZ12: 0 | BA12: 0 | BB12: 0 | BC12: 0 | BD12: 0 | BE12: 0 | BF12: 0 | BG12: 0 | BH12: 0 | BI12: 0 | BJ12: 0 | BL12: 9493.128126 | BM12: 11481.4548 | BN12: 13515.68199 | BO12: 20219.24296 | BP12: 16286.09078 | BQ12: 2523.203924 | BR12: 0 | BS12: 0 | BT12: 0 | BU12: 0 | BV12: 0 | BW12: 9777.92197 | BX12: 16014.25747 | BY12: 13921.15245 | BZ12: 20825.82025 | CA12: 16774.6735 | CB12: 2593.353896 | CC12: 0 | CD12: 0 | CE12: 0 | CF12: 0 | CG12: 0
B13: 7041 | C13: Goldwyn School | D13: 150 | E13: 156 | F13: 0 | G13: 33 | H13: 0 | I13: 0 | J13: 0 | K13: 0 | L13: 14045.82672 | M13: 13564.82318 | N13: 14106.03 | O13: 20282.16222 | P13: 19801.15868 | Q13: 19682.07 | R13: 20282.16222 | S13: 19801.15868 | T13: 18665.47 | U13: 18189.0572 | V13: 17708.05366 | W13: 17649.93 | X13: 25093.725 | Y13: 24612.72146 | Z13: 24353.49 | AB13: 15744.49072 | AC13: 15744.49072 | AD13: 0 | AE13: 0 | AF13: 0 | AG13: 0 | AH13: 0 | AI13: 0 | AJ13: 0 | AK13: 0 | AL13: 5856.38009 | AM13: 0 | AN13: 0 | AO13: 7.3492 | AP13: 47900 | AQ13: 0 | AR13: 0.4166666667 | AS13: 0 | AT13: 2 | AU13: 1 | AV13: 0 | AW13: 0 | AX13: 0 | AY13: 0 | AZ13: 0 | BA13: 0 | BB13: 0 | BC13: 0 | BD13: 0 | BE13: 0 | BF13: 0 | BG13: 0 | BH13: 0 | BI13: 0 | BJ13: 0 | BL13: 9493.128126 | BM13: 14531.23079 | BN13: 13515.68199 | BO13: 20219.24296 | BP13: 15547.82278 | BQ13: 4134.243273 | BR13: 478.6618675 | BS13: 0 | BT13: 0 | BU13: 0 | BV13: 0 | BW13: 9777.92197 | BX13: 16014.25747 | BY13: 13921.15245 | BZ13: 20825.82025 | CA13: 16014.25747 | CB13: 3987.319352 | CC13: 340.7886789 | CD13: 0 | CE13: 0 | CF13: 0 | CG13: 0
B14: 7043 | C14: The Beacon Folkestone | D14: 348 | E14: 329 | F14: 64 | G14: 73 | H14: 0 | I14: 0 | J14: 0 | K14: 0 | L14: 11612.13037 | M14: 11684.06495 | N14: 11771.35 | O14: 18608.8819 | P14: 18680.81648 | Q14: 18016.08 | R14: 17848.46586 | S14: 17920.40045 | T14: 13531.6 | U14: 15755.36084 | V14: 15827.29542 | W14: 15381.77 | X14: 22660.02864 | Y14: 22731.96323 | Z14: 21949.23 | AB14: 16504.90675 | AC14: 15744.49072 | AD14: 0 | AE14: 0 | AF14: 0 | AG14: 0 | AH14: 0 | AI14: 0 | AJ14: 0 | AK14: 0 | AL14: 7676 | AM14: 0 | AN14: 0 | AO14: 2.4561 | AP14: 0 | AQ14: 1 | AR14: 0.4729241877 | AS14: 0 | AT14: 0 | AU14: 1 | AV14: 0 | AW14: 0 | AX14: 0 | AY14: 0 | AZ14: 0 | BA14: 0 | BB14: 0 | BC14: 0 | BD14: 0 | BE14: 0 | BF14: 0 | BG14: 0 | BH14: 0 | BI14: 0 | BJ14: 0 | BL14: 9493.128126 | BM14: 11481.4548 | BN14: 13515.68199 | BO14: 20219.24296 | BP14: 16286.09078 | BQ14: 1729.98731 | BR14: 548.2393622 | BS14: 320.1551583 | BT14: 136.0963674 | BU14: 0 | BV14: 0 | BW14: 9777.92197 | BX14: 16014.25747 | BY14: 13921.15245 | BZ14: 20825.82025 | CA14: 16774.6735 | CB14: 1876.170236 | CC14: 117.2577948 | CD14: 0 | CE14: 0 | CF14: 0 | CG14: 0
B15: 7044 | C15: Rowhill School | D15: 110 | E15: 132 | F15: 0 | G15: 0 | H15: 0 | I15: 0 | J15: 0 | K15: 0 | L15: 14966.87781 | M15: 14165.9572 | N15: 14536.1 | O15: 21330.55024 | P15: 20529.62964 | Q15: 20714.42 | R15: 21260.68151 | S15: 20459.7609 | T15: 16972.64 | U15: 19190.61845 | V15: 18389.69785 | W15: 18636.82 | X15: 26229.37168 | Y15: 25428.45107 | Z15: 25470.56 | AB15: 15744.49072 | AC15: 15744.49072 | AD15: 165.5509854 | AE15: 223.0191877 | AF15: 246.0611559 | AG15: 380.1465759 | AH15: 292.8879204 | AI15: 0 | AJ15: 0 | AK15: 0 | AL15: 4165 | AM15: 0 | AN15: 0 | AO15: 1.8948 | AP15: 0 | AQ15: 0 | AR15: 0.5362318841 | AS15: 1 | AT15: 0 | AU15: 0 | AV15: 0 | AW15: 0 | AX15: 0 | AY15: 0 | AZ15: 0 | BA15: 0 | BB15: 0 | BC15: 0 | BD15: 0 | BE15: 0 | BF15: 0 | BG15: 0 | BH15: 0 | BI15: 0 | BJ15: 0 | BL15: 9653.857238 | BM15: 12090.40518 | BN15: 13754.57631 | BO15: 20588.3173 | BP15: 15832.17999 | BQ15: 4882.238835 | BR15: 0 | BS15: 0 | BT15: 0 | BU15: 0 | BV15: 0 | BW15: 9943.472955 | BX15: 16237.27666 | BY15: 14167.2136 | BZ15: 21205.96682 | CA15: 16307.14539 | CB15: 4556.201167 | CC15: 36.42587815 | CD15: 0 | CE15: 0 | CF15: 0 | CG15: 0
B16: 7045 | C16: Elms School | D16: 158 | E16: 158 | F16: 0 | G16: 0 | H16: 0 | I16: 0 | J16: 0 | K16: 0 | L16: 13105.96091 | M16: 13126.4769 | N16: 13048.92 | O16: 19342.29641 | P16: 19362.8124 | Q16: 18783.41 | R16: 19342.29641 | S16: 19362.8124 | T16: 15260.26 | U16: 17249.19139 | V16: 17269.70738 | W16: 16858.74 | X16: 24153.85919 | Y16: 24174.37518 | Z16: 23440.76 | AB16: 15744.49072 | AC16: 15744.49072 | AD16: 0 | AE16: 0 | AF16: 0 | AG16: 0 | AH16: 0 | AI16: 0 | AJ16: 0 | AK16: 0 | AL16: 2771 | AM16: 0 | AN16: 0 | AO16: 2.13 | AP16: 0 | AQ16: 0 | AR16: 0.7379310345 | AS16: 0 | AT16: 0 | AU16: 0 | AV16: 0 | AW16: 0 | AX16: 0 | AY16: 0 | AZ16: 0 | BA16: 0 | BB16: 0 | BC16: 0 | BD16: 0 | BE16: 0 | BF16: 0 | BG16: 0 | BH16: 0 | BI16: 0 | BJ16: 0 | BL16: 9493.128126 | BM16: 11892.53169 | BN16: 13515.68199 | BO16: 20219.24296 | BP16: 15547.82278 | BQ16: 3221.517187 | BR16: 334.2719705 | BS16: 146.2149491 | BT16: 121.5407567 | BU16: 0 | BV16: 14.07177224 | BW16: 9777.92197 | BX16: 16014.25747 | BY16: 13921.15245 | BZ16: 20825.82025 | CA16: 16014.25747 | CB16: 3340.006602 | CC16: 0 | CD16: 0 | CE16: 0 | CF16: 0 | CG16: 0
B17: 7051 | C17: Nexus School | D17: 200 | E17: 200 | F17: 28 | G17: 28 | H17: 0 | I17: 0 | J17: 0 | K17: 0 | L17: 12781.18121 | M17: 12794.93818 | N17: 12773.08 | O17: 19777.93274 | P17: 19791.68971 | Q17: 19358.81 | R17: 19017.51671 | S17: 19031.27367 | T17: 14600.18 | U17: 16924.41169 | V17: 16938.16865 | W17: 16588.4 | X17: 23829.07949 | Y17: 23842.83646 | Z17: 23291.96 | AB17: 16504.90675 | AC17: 15744.49072 | AD17: 0 | AE17: 0 | AF17: 0 | AG17: 0 | AH17: 0 | AI17: 0 | AJ17: 0 | AK17: 0 | AL17: 6916 | AM17: 0 | AN17: 0 | AO17: 2.36 | AP17: 0 | AQ17: 1 | AR17: 0.3024691358 | AS17: 0 | AT17: 0 | AU17: 1 | AV17: 0 | AW17: 0 | AX17: 0 | AY17: 0 | AZ17: 0 | BA17: 0 | BB17: 0 | BC17: 0 | BD17: 0 | BE17: 0 | BF17: 0 | BG17: 0 | BH17: 0 | BI17: 0 | BJ17: 0 | BL17: 9493.128126 | BM17: 11481.4548 | BN17: 13515.68199 | BO17: 20219.24296 | BP17: 16286.09078 | BQ17: 3072.714265 | BR17: 207.2345572 | BS17: 46.01113628 | BT17: 0 | BU17: 0 | BV17: 0 | BW17: 9777.92197 | BX17: 16014.25747 | BY17: 13921.15245 | BZ17: 20825.82025 | CA17: 16774.6735 | CB17: 3011.284139 | CC17: 0 | CD17: 0 | CE17: 0 | CF17: 0 | CG17: 0
B18: 7052 | C18: Grange Park School | D18: 100 | E18: 91 | F18: 50 | G18: 53 | H18: 0 | I18: 0 | J18: 0 | K18: 0 | L18: 12895.43158 | M18: 13025.03536 | N18: 12861.07 | O18: 19892.18311 | P18: 20021.78689 | Q18: 19294.78 | R18: 19131.76708 | S18: 19261.37086 | T18: 14744.24 | U18: 17038.66205 | V18: 17168.26583 | W18: 16670.89 | X18: 23943.32986 | Y18: 24072.93364 | Z18: 23196.62 | AB18: 16504.90675 | AC18: 15744.49072 | AD18: 0 | AE18: 0 | AF18: 0 | AG18: 0 | AH18: 0 | AI18: 0 | AJ18: 0 | AK18: 0 | AL18: 1958.53 | AM18: 0 | AN18: 0 | AO18: 1.1245 | AP18: 0 | AQ18: 0 | AR18: 0.2747252747 | AS18: 0 | AT18: 0 | AU18: 0 | AV18: 0 | AW18: 0 | AX18: 0 | AY18: 0 | AZ18: 0 | BA18: 0 | BB18: 0 | BC18: 0 | BD18: 0 | BE18: 0 | BF18: 0 | BG18: 0 | BH18: 0 | BI18: 0 | BJ18: 0 | BL18: 9493.128126 | BM18: 11481.4548 | BN18: 13515.68199 | BO18: 20219.24296 | BP18: 16286.09078 | BQ18: 2977.372418 | BR18: 390.564549 | BS18: 285.4126574 | BT18: 177.8333353 | BU18: 0 | BV18: 31.3213319 | BW18: 9777.92197 | BX18: 16014.25747 | BY18: 13921.15245 | BZ18: 20825.82025 | CA18: 16774.6735 | CB18: 3193.111813 | CC18: 0 | CD18: 0 | CE18: 0 | CF18: 0 | CG18: 0
B19: 7056 | C19: Five Acre Wood School | D19: 420 | E19: 542 | F19: 50 | G19: 59 | H19: 0 | I19: 0 | J19: 0 | K19: 0 | L19: 11389.53455 | M19: 11089.55239 | N19: 11254.39 | O19: 18386.28608 | P19: 18086.30392 | Q19: 17846.72 | R19: 17625.87005 | S19: 17325.88789 | T19: 13042.08 | U19: 15532.76503 | V19: 15232.78287 | W19: 15076.31 | X19: 22437.43283 | Y19: 22137.45067 | Z19: 21779.87 | AB19: 16504.90675 | AC19: 15744.49072 | AD19: 0 | AE19: 0 | AF19: 0 | AG19: 0 | AH19: 0 | AI19: 0 | AJ19: 0 | AK19: 0 | AL19: 7768.4 | AM19: 0 | AN19: 0 | AO19: 2.6382 | AP19: 9259 | AQ19: 1 | AR19: 0.3346613546 | AS19: 0 | AT19: 1 | AU19: 1 | AV19: 0 | AW19: 0 | AX19: 0 | AY19: 0 | AZ19: 0 | BA19: 0 | BB19: 0 | BC19: 0 | BD19: 0 | BE19: 0 | BF19: 0 | BG19: 0 | BH19: 0 | BI19: 0 | BJ19: 0 | BL19: 9493.128126 | BM19: 11481.4548 | BN19: 13515.68199 | BO19: 20219.24296 | BP19: 16286.09078 | BQ19: 1560.624313 | BR19: 200.6375609 | BS19: 0 | BT19: 0 | BU19: 0 | BV19: 0 | BW19: 9777.92197 | BX19: 16014.25747 | BY19: 13921.15245 | BZ19: 20825.82025 | CA19: 16774.6735 | CB19: 1436.622991 | CC19: 39.84503984 | CD19: 0 | CE19: 0 | CF19: 0 | CG19: 0
B20: 7058 | C20: Stone Bay School | D20: 65 | E20: 69 | F20: 15 | G20: 21 | H20: 18 | I20: 18 | J20: 0 | K20: 0 | L20: 15814.32604 | M20: 15191.67885 | N20: 16536.41 | O20: 29654.82186 | P20: 29032.17468 | Q20: 29561.88 | R20: 22050.66153 | S20: 21428.01435 | T20: 18448.26 | U20: 19957.55651 | V20: 19334.90933 | W20: 20404.25 | X20: 26862.22431 | Y20: 26239.57713 | Z20: 26850.62 | AB20: 23348.65105 | AC20: 15744.49072 | AD20: 0 | AE20: 0 | AF20: 0 | AG20: 0 | AH20: 0 | AI20: 0 | AJ20: 0 | AK20: 0 | AL20: 2396.216342 | AM20: 1481.783658 | AN20: 0 | AO20: 0.96 | AP20: 0 | AQ20: 1 | AR20: 0.45 | AS20: 0 | AT20: 0 | AU20: 0 | AV20: 77583.76384 | AW20: 76094.84 | AX20: 76961.11666 | AY20: 74791.16629 | AZ20: 73383.58 | BA20: 74168.51911 | BB20: 0 | BC20: 0 | BD20: 0 | BE20: 32337.4174 | BF20: 0 | BG20: 0 | BH20: 0 | BI20: 0 | BJ20: 0 | BL20: 9493.128126 | BM20: 11481.4548 | BN20: 13515.68199 | BO20: 20219.24296 | BP20: 22930.50272 | BQ20: 6631.380048 | BR20: 411.9023408 | BS20: 335.4282378 | BT20: 257.1887308 | BU20: 0 | BV20: 0 | BW20: 9777.92197 | BX20: 16014.25747 | BY20: 13921.15245 | BZ20: 20825.82025 | CA20: 23618.4178 | CB20: 5673.193209 | CC20: 1085.294822 | CD20: 0 | CE20: 809.904345 | CF20: 351.6065431 | CG20: 270.2689945
B21: 7062 | C21: The Orchard School | D21: 83 | E21: 85 | F21: 0 | G21: 0 | H21: 0 | I21: 0 | J21: 0 | K21: 0 | L21: 15629.4097 | M21: 15539.76955 | N21: 15171.59 | O21: 21865.74519 | P21: 21776.10505 | Q21: 21226.28 | R21: 21865.74519 | S21: 21776.10505 | T21: 17461.69 | U21: 19772.64017 | V21: 19683.00002 | W21: 19194.14 | X21: 26677.30797 | Y21: 26587.66783 | Z21: 25897.7 | AB21: 15744.49072 | AC21: 15744.49072 | AD21: 0 | AE21: 0 | AF21: 0 | AG21: 0 | AH21: 0 | AI21: 0 | AJ21: 0 | AK21: 0 | AL21: 2505 | AM21: 0 | AN21: 0 | AO21: 1.81 | AP21: 0 | AQ21: 0 | AR21: 0.5670103093 | AS21: 0 | AT21: 0 | AU21: 0 | AV21: 0 | AW21: 0 | AX21: 0 | AY21: 0 | AZ21: 0 | BA21: 0 | BB21: 0 | BC21: 0 | BD21: 0 | BE21: 0 | BF21: 0 | BG21: 0 | BH21: 0 | BI21: 0 | BJ21: 0 | BL21: 9493.128126 | BM21: 11783.23506 | BN21: 13515.68199 | BO21: 20219.24296 | BP21: 15547.82278 | BQ21: 5678.458452 | BR21: 0 | BS21: 0 | BT21: 0 | BU21: 0 | BV21: 0 | BW21: 9777.92197 | BX21: 16014.25747 | BY21: 13921.15245 | BZ21: 20825.82025 | CA21: 16014.25747 | CB21: 5799.19764 | CC21: 0 | CD21: 0 | CE21: 0 | CF21: 0 | CG21: 0
B22: 7063 | C22: St Nicholas' School | D22: 249 | E22: 273 | F22: 43 | G22: 39 | H22: 0 | I22: 0 | J22: 0 | K22: 0 | L22: 12649.78236 | M22: 12487.16559 | N22: 12370.3 | O22: 19646.5339 | P22: 19483.91712 | Q22: 19163.26 | R22: 18886.11786 | S22: 18723.50109 | T22: 14358.63 | U22: 16793.01284 | V22: 16630.39606 | W22: 16392.85 | X22: 23697.68064 | Y22: 23535.06387 | Z22: 23096.41 | AB22: 16504.90675 | AC22: 15744.49072 | AD22: 0 | AE22: 0 | AF22: 0 | AG22: 0 | AH22: 0 | AI22: 0 | AJ22: 0 | AK22: 0 | AL22: 3971.77001 | AM22: 0 | AN22: 0 | AO22: 0.9305 | AP22: 122554 | AQ22: 1 | AR22: 0.3696498054 | AS22: 0 | AT22: 6 | AU22: 3 | AV22: 0 | AW22: 0 | AX22: 0 | AY22: 0 | AZ22: 0 | BA22: 0 | BB22: 0 | BC22: 0 | BD22: 0 | BE22: 0 | BF22: 0 | BG22: 0 | BH22: 0 | BI22: 0 | BJ22: 0 | BL22: 9493.128126 | BM22: 11481.4548 | BN22: 13515.68199 | BO22: 20219.24296 | BP22: 16286.09078 | BQ22: 2877.1704 | BR22: 0 | BS22: 0 | BT22: 0 | BU22: 0 | BV22: 0 | BW22: 9777.92197 | BX22: 16014.25747 | BY22: 13921.15245 | BZ22: 20825.82025 | CA22: 16774.6735 | CB22: 2777.000609 | CC22: 0 | CD22: 0 | CE22: 0 | CF22: 0 | CG22: 0
B23: 7066 | C23: Milestone Academy | D23: 285 | E23: 285 | F23: 55 | G23: 55 | H23: 0 | I23: 0 | J23: 0 | K23: 0 | L23: 12292.94266 | M23: 12289.57978 | N23: 11954.58 | O23: 19431.17681 | P23: 19427.81394 | Q23: 18884.91 | R23: 18578.70087 | S23: 18575.33799 | T23: 13990.89 | U23: 16516.6833 | V23: 16513.32043 | W23: 16055.3 | X23: 23555.43653 | Y23: 23552.07365 | Z23: 22889.04 | AB23: 16504.90675 | AC23: 15744.49072 | AD23: 165.9189598 | AE23: 215.3416717 | AF23: 246.4291303 | AG23: 380.5145503 | AH23: 307.4015839 | AI23: 0 | AJ23: 0 | AK23: 0 | AL23: 7151 | AM23: 0 | AN23: 0 | AO23: 4.6769 | AP23: 0 | AQ23: 1 | AR23: 0.2891986063 | AS23: 1 | AT23: 0 | AU23: 3 | AV23: 0 | AW23: 0 | AX23: 0 | AY23: 0 | AZ23: 0 | BA23: 0 | BB23: 0 | BC23: 0 | BD23: 0 | BE23: 0 | BF23: 0 | BG23: 0 | BH23: 0 | BI23: 0 | BJ23: 0 | BL23: 9653.857238 | BM23: 11690.16713 | BN23: 13754.57631 | BO23: 20588.3173 | BP23: 16584.18166 | BQ23: 2300.724332 | BR23: 0 | BS23: 0 | BT23: 0 | BU23: 0 | BV23: 0 | BW23: 9943.840929 | BX23: 16229.59914 | BY23: 14167.58158 | BZ23: 21206.3348 | CA23: 17082.07508 | CB23: 2347.140051 | CC23: 0 | CD23: 0 | CE23: 0 | CF23: 0 | CG23: 0
B24: 7067 | C24: Portal House School | D24: 80 | E24: 80 | F24: 0 | G24: 0 | H24: 0 | I24: 0 | J24: 0 | K24: 0 | L24: 16269.83494 | M24: 16277.31104 | N24: 16589.67 | O24: 22506.17043 | P24: 22513.64654 | Q24: 22324.16 | R24: 22506.17043 | S24: 22513.64654 | T24: 21361.33 | U24: 20413.06541 | V24: 20420.54152 | W24: 20399.49 | X24: 27317.73321 | Y24: 27325.20932 | Z24: 26748.54 | AB24: 15744.49072 | AC24: 15744.49072 | AD24: 0 | AE24: 0 | AF24: 0 | AG24: 0 | AH24: 0 | AI24: 0 | AJ24: 0 | AK24: 0 | AL24: 3816 | AM24: 0 | AN24: 0 | AO24: 0.81 | AP24: 0 | AQ24: 0 | AR24: 0.2985074627 | AS24: 0 | AT24: 0 | AU24: 0 | AV24: 0 | AW24: 0 | AX24: 0 | AY24: 0 | AZ24: 0 | BA24: 0 | BB24: 0 | BC24: 0 | BD24: 0 | BE24: 0 | BF24: 0 | BG24: 0 | BH24: 0 | BI24: 0 | BJ24: 0 | BL24: 9493.128126 | BM24: 14531.23079 | BN24: 13515.68199 | BO24: 20219.24296 | BP24: 15547.82278 | BQ24: 6174.665826 | BR24: 921.8761945 | BS24: 655.4380729 | BT24: 709.1449807 | BU24: 354.6297369 | BV24: 601.6759962 | BW24: 9777.92197 | BX24: 16014.25747 | BY24: 13921.15245 | BZ24: 20825.82025 | CA24: 16014.25747 | CB24: 6496.274029 | CC24: 315.4740015 | CD24: 0 | CE24: 0 | CF24: 0 | CG24: 0
B25: 7069 | C25: The Wyvern School | D25: 255 | E25: 240 | F25: 35 | G25: 45 | H25: 0 | I25: 0 | J25: 0 | K25: 0 | L25: 11991.36345 | M25: 12040.42444 | N25: 11692.78 | O25: 18988.11498 | P25: 19037.17597 | Q25: 18485.74 | R25: 18227.69895 | S25: 18276.75993 | T25: 13681.11 | U25: 16134.59393 | V25: 16183.65491 | W25: 15715.33 | X25: 23039.26173 | Y25: 23088.32271 | Z25: 22418.89 | AB25: 16504.90675 | AC25: 15744.49072 | AD25: 0 | AE25: 0 | AF25: 0 | AG25: 0 | AH25: 0 | AI25: 0 | AJ25: 0 | AK25: 0 | AL25: 6156 | AM25: 0 | AN25: 0 | AO25: 7.6 | AP25: 0 | AQ25: 1 | AR25: 0.3360995851 | AS25: 0 | AT25: 1 | AU25: 0 | AV25: 0 | AW25: 0 | AX25: 0 | AY25: 0 | AZ25: 0 | BA25: 0 | BB25: 0 | BC25: 0 | BD25: 0 | BE25: 0 | BF25: 0 | BG25: 0 | BH25: 0 | BI25: 0 | BJ25: 0 | BL25: 9493.128126 | BM25: 11481.4548 | BN25: 13515.68199 | BO25: 20219.24296 | BP25: 16286.09078 | BQ25: 2199.651931 | BR25: 0 | BS25: 0 | BT25: 0 | BU25: 0 | BV25: 0 | BW25: 9777.92197 | BX25: 16014.25747 | BY25: 13921.15245 | BZ25: 20825.82025 | CA25: 16774.6735 | CB25: 2242.06039 | CC25: 0 | CD25: 0 | CE25: 0 | CF25: 0 | CG25: 0
B26: 7070 | C26: Oakley School | D26: 200 | E26: 170 | F26: 52 | G26: 42 | H26: 0 | I26: 0 | J26: 0 | K26: 0 | L26: 12206.71451 | M26: 12652.4199 | N26: 12081.42 | O26: 19203.46604 | P26: 19649.17143 | Q26: 18874.38 | R26: 18443.05 | S26: 18888.75539 | T26: 14069.75 | U26: 16349.94498 | V26: 16795.65037 | W26: 16103.97 | X26: 23254.61278 | Y26: 23700.31817 | Z26: 22807.53 | AB26: 16504.90675 | AC26: 15744.49072 | AD26: 0 | AE26: 0 | AF26: 0 | AG26: 0 | AH26: 0 | AI26: 0 | AJ26: 0 | AK26: 0 | AL26: 4287 | AM26: 0 | AN26: 0 | AO26: 11.4161 | AP26: 0 | AQ26: 0 | AR26: 0.3375 | AS26: 0 | AT26: 0 | AU26: 1 | AV26: 0 | AW26: 0 | AX26: 0 | AY26: 0 | AZ26: 0 | BA26: 0 | BB26: 0 | BC26: 0 | BD26: 0 | BE26: 0 | BF26: 0 | BG26: 0 | BH26: 0 | BI26: 0 | BJ26: 0 | BL26: 9493.128126 | BM26: 11481.4548 | BN26: 13515.68199 | BO26: 20219.24296 | BP26: 16286.09078 | BQ26: 2588.29074 | BR26: 0 | BS26: 0 | BT26: 0 | BU26: 0 | BV26: 0 | BW26: 9777.92197 | BX26: 16014.25747 | BY26: 13921.15245 | BZ26: 20825.82025 | CA26: 16774.6735 | CB26: 2688.787347 | CC26: 0 | CD26: 0 | CE26: 0 | CF26: 0 | CG26: 0
B27: 7072 | C27: Meadowfield School | D27: 298 | E27: 310 | F27: 50 | G27: 41 | H27: 0 | I27: 0 | J27: 0 | K27: 0 | L27: 11700.16383 | M27: 11777.39631 | N27: 11420.64 | O27: 18696.91536 | P27: 18774.14784 | Q27: 18213.6 | R27: 17936.49933 | S27: 18013.7318 | T27: 13408.97 | U27: 15843.39431 | V27: 15920.62678 | W27: 15443.19 | X27: 22748.06211 | Y27: 22825.29458 | Z27: 22146.75 | AB27: 16504.90675 | AC27: 15744.49072 | AD27: 0 | AE27: 0 | AF27: 0 | AG27: 0 | AH27: 0 | AI27: 0 | AJ27: 0 | AK27: 0 | AL27: 7513 | AM27: 0 | AN27: 0 | AO27: 2.3726 | AP27: 0 | AQ27: 1 | AR27: 0.3964912281 | AS27: 0 | AT27: 1 | AU27: 0 | AV27: 0 | AW27: 0 | AX27: 0 | AY27: 0 | AZ27: 0 | BA27: 0 | BB27: 0 | BC27: 0 | BD27: 0 | BE27: 0 | BF27: 0 | BG27: 0 | BH27: 0 | BI27: 0 | BJ27: 0 | BL27: 9493.128126 | BM27: 11481.4548 | BN27: 13515.68199 | BO27: 20219.24296 | BP27: 16286.09078 | BQ27: 1927.510553 | BR27: 0 | BS27: 0 | BT27: 0 | BU27: 0 | BV27: 0 | BW27: 9777.92197 | BX27: 16014.25747 | BY27: 13921.15245 | BZ27: 20825.82025 | CA27: 16774.6735 | CB27: 1967.294139 | CC27: 0 | CD27: 0 | CE27: 0 | CF27: 0 | CG27: 0
B28: 7073 | C28: Laleham Gap School | D28: 196 | E28: 187 | F28: 0 | G28: 9 | H28: 0 | I28: 0 | J28: 0 | K28: 0 | L28: 12744.00444 | M28: 12703.30343 | N28: 12312.93 | O28: 19740.75597 | P28: 19700.05496 | Q28: 19105.89 | R28: 18980.33994 | S28: 18939.63892 | T28: 14301.25 | U28: 16887.23491 | V28: 16846.5339 | W28: 16335.48 | X28: 23791.90272 | Y28: 23751.2017 | Z28: 23039.04 | AB28: 16504.90675 | AC28: 15744.49072 | AD28: 0 | AE28: 0 | AF28: 0 | AG28: 0 | AH28: 0 | AI28: 0 | AJ28: 0 | AK28: 0 | AL28: 4885 | AM28: 0 | AN28: 0 | AO28: 2.5697 | AP28: 0 | AQ28: 0 | AR28: 0.3179487179 | AS28: 0 | AT28: 0 | AU28: 0 | AV28: 0 | AW28: 0 | AX28: 0 | AY28: 0 | AZ28: 0 | BA28: 0 | BB28: 0 | BC28: 0 | BD28: 0 | BE28: 0 | BF28: 0 | BG28: 0 | BH28: 0 | BI28: 0 | BJ28: 0 | BL28: 9493.128126 | BM28: 11481.4548 | BN28: 13515.68199 | BO28: 20219.24296 | BP28: 16286.09078 | BQ28: 2819.798962 | BR28: 0 | BS28: 0 | BT28: 0 | BU28: 0 | BV28: 0 | BW28: 9777.92197 | BX28: 16014.25747 | BY28: 13921.15245 | BZ28: 20825.82025 | CA28: 16774.6735 | CB28: 2942.340211 | CC28: 0 | CD28: 0 | CE28: 0 | CF28: 0 | CG28: 0

Sheet Firing Range (hidden)
A1: =COUNTIF(B1:AT1,">0")-22 -> 3 | C1: 7032 | D1: =COUNTIF(D2:D108,">0") -> 0 | E1: 7033 | F1: =COUNTIF(F2:F108,">0") -> 0 | G1: 7044 | H1: =COUNTIF(H2:H108,">0") -> 0 | I1: 7045 | J1: =COUNTIF(J2:J108,">0") -> 0 | K1: 7062 | L1: =COUNTIF(L2:L108,">0") -> 16 | M1: 7041 | N1: =COUNTIF(N2:N108,">0") -> 0 | O1: 7067 | P1: =COUNTIF(P2:P108,">0") -> 0 | Q1: 7021 | R1: =COUNTIF(R2:R108,">0") -> 0 | S1: 7002 | T1: =COUNTIF(T2:T108,">0") -> 15 | U1: 7052 | V1: =COUNTIF(V2:V108,">0") -> 0 | W1: 7058 | X1: =COUNTIF(X2:X108,">0") -> 0 | Y1: 7073 | Z1: =COUNTIF(Z2:Z108,">0") -> 0 | AA1: 7039 | AB1: =COUNTIF(AB2:AB108,">0") -> 0 | AC1: 7040 | AD1: =COUNTIF(AD2:AD108,">0") -> 0 | AE1: 7043 | AF1: =COUNTIF(AF2:AF108,">0") -> 0 | AG1: 7051 | AH1: =COUNTIF(AH2:AH108,">0") -> 17 | AI1: 7056 | AJ1: =COUNTIF(AJ2:AJ108,">0") -> 0 | AK1: 7063 | AL1: =COUNTIF(AL2:AL108,">0") -> 0 | AM1: 7066 | AN1: =COUNTIF(AN2:AN108,">0") -> 0 | AO1: 7069 | AP1: =COUNTIF(AP2:AP108,">0") -> 0 | AQ1: 7070 | AR1: =COUNTIF(AR2:AR108,">0") -> 0 | AS1: 7072 | AT1: =COUNTIF(AT2:AT108,">0") -> 0 | AU1: 7005 | AV1: =COUNTIF(AV2:AV108,">0") -> 0 | AW1: 7006 | AX1: =COUNTIF(AX2:AX108,">0") -> 0
A2: DFENUM | B2: ='Special Rates 2021-22'!DFENUM -> 0 | C2: 7032 | D2: =IF(C2=C1,0,1) -> 0 | E2: 7033 | F2: =IF(E2=E1,0,1) -> 0 | G2: 7044 | H2: =IF(G2=G1,0,1) -> 0 | I2: 7045 | J2: =IF(I2=I1,0,1) -> 0 | K2: 7062 | L2: =IF(K2=K1,0,1) -> 0 | M2: 7041 | N2: =IF(M2=M1,0,1) -> 0 | O2: 7067 | P2: =IF(O2=O1,0,1) -> 0 | Q2: 7021 | R2: =IF(Q2=Q1,0,1) -> 0 | S2: 7002 | T2: =IF(S2=S1,0,1) -> 0 | U2: 7052 | V2: =IF(U2=U1,0,1) -> 0 | W2: 7058 | X2: =IF(W2=W1,0,1) -> 0 | Y2: 7073 | Z2: =IF(Y2=Y1,0,1) -> 0 | AA2: 7039 | AB2: =IF(AA2=AA1,0,1) -> 0 | AC2: 7040 | AD2: =IF(AC2=AC1,0,1) -> 0 | AE2: 7043 | AF2: =IF(AE2=AE1,0,1) -> 0 | AG2: 7051 | AH2: =IF(AG2=AG1,0,1) -> 0 | AI2: 7056 | AJ2: =IF(AI2=AI1,0,1) -> 0 | AK2: 7063 | AL2: =IF(AK2=AK1,0,1) -> 0 | AM2: 7066 | AN2: =IF(AM2=AM1,0,1) -> 0 | AO2: 7069 | AP2: =IF(AO2=AO1,0,1) -> 0 | AQ2: 7070 | AR2: =IF(AQ2=AQ1,0,1) -> 0 | AS2: 7072 | AT2: =IF(AS2=AS1,0,1) -> 0 | AU2: 7005 | AV2: =IF(AU2=AU1,0,1) -> 0 | AW2: 7006 | AX2: =IF(AW2=AW1,0,1) -> 0
A3: NAME | B3: =[0]!NAME ->  | C3: Bower Grove School | D3: 0 | E3: St Anthony's School | F3: 0 | G3: Rowhill School | H3: 0 | I3: Elms School | J3: 0 | K3: The Orchard School | L3: 0 | M3: Goldwyn School | N3: 0 | O3: Portal House School | P3: 0 | Q3: Valence School | R3: 0 | S3: Broomhill Bank School | T3: 0 | U3: Grange Park School | V3: 0 | W3: Stone Bay School | X3: 0 | Y3: Laleham Gap School | Z3: 0 | AA3: The Ifield School | AB3: 0 | AC3: Foreland Fields School | AD3: 0 | AE3: The Beacon Folkestone | AF3: 0 | AG3: Nexus School | AH3: 0 | AI3: Five Acre Wood School | AJ3: 0 | AK3: St Nicholas' School | AL3: 0 | AM3: Milestone Academy | AN3: 0 | AO3: The Wyvern School | AP3: 0 | AQ3: Oakley School | AR3: 0 | AS3: Meadowfield School | AT3: 0 | AU3: Aspire School | AV3: 0 | AW3: Snowfields Academy | AX3: 0
A4: preold | B4: =[0]!preold -> 0 | C4: 214 | D4: 0 | E4: 98 | F4: 0 | G4: 110 | H4: 0 | I4: 158 | J4: 0 | K4: 83 | L4: 0 | M4: 150 | N4: 0 | O4: 80 | P4: 0 | Q4: 72 | R4: 0 | S4: 218 | T4: 0 | U4: 100 | V4: 0 | W4: 65 | X4: 0 | Y4: 196 | Z4: 0 | AA4: 210 | AB4: 0 | AC4: 188 | AD4: 0 | AE4: 348 | AF4: 0 | AG4: 200 | AH4: 0 | AI4: 420 | AJ4: 0 | AK4: 249 | AL4: 0 | AM4: 285 | AN4: 0 | AO4: 255 | AP4: 0 | AQ4: 200 | AR4: 0 | AS4: 298 | AT4: 0 | AU4: 32 | AV4: 0 | AW4: 60 | AX4: 0
A5: postold | B5: =[0]!postold -> 0 | C5: 0 | D5: 0 | E5: 0 | F5: 0 | G5: 0 | H5: 0 | I5: 0 | J5: 0 | K5: 0 | L5: 0 | M5: 0 | N5: 0 | O5: 0 | P5: 0 | Q5: 33 | R5: 0 | S5: 100 | T5: 0 | U5: 50 | V5: 0 | W5: 15 | X5: 0 | Y5: 0 | Z5: 0 | AA5: 40 | AB5: 0 | AC5: 32 | AD5: 0 | AE5: 64 | AF5: 0 | AG5: 28 | AH5: 0 | AI5: 50 | AJ5: 0 | AK5: 43 | AL5: 0 | AM5: 55 | AN5: 0 | AO5: 35 | AP5: 0 | AQ5: 52 | AR5: 0 | AS5: 50 | AT5: 0 | AU5: 0 | AV5: 0 | AW5: 0 | AX5: 0
A6: weekdayold | B6: =[0]!weekdayold -> 0 | C6: 0 | D6: 0 | E6: 0 | F6: 0 | G6: 0 | H6: 0 | I6: 0 | J6: 0 | K6: 0 | L6: 0 | M6: 0 | N6: 0 | O6: 0 | P6: 0 | Q6: 46 | R6: 0 | S6: 23 | T6: 0 | U6: 0 | V6: 0 | W6: 18 | X6: 0 | Y6: 0 | Z6: 0 | AA6: 0 | AB6: 0 | AC6: 0 | AD6: 0 | AE6: 0 | AF6: 0 | AG6: 0 | AH6: 0 | AI6: 0 | AJ6: 0 | AK6: 0 | AL6: 0 | AM6: 0 | AN6: 0 | AO6: 0 | AP6: 0 | AQ6: 0 | AR6: 0 | AS6: 0 | AT6: 0 | AU6: 0 | AV6: 0 | AW6: 0 | AX6: 0
A7: weekendold | B7: =[0]!weekendold -> 0 | C7: 0 | D7: 0 | E7: 0 | F7: 0 | G7: 0 | H7: 0 | I7: 0 | J7: 0 | K7: 0 | L7: 0 | M7: 0 | N7: 0 | O7: 0 | P7: 0 | Q7: 18 | R7: 0 | S7: 0 | T7: 0 | U7: 0 | V7: 0 | W7: 0 | X7: 0 | Y7: 0 | Z7: 0 | AA7: 0 | AB7: 0 | AC7: 0 | AD7: 0 | AE7: 0 | AF7: 0 | AG7: 0 | AH7: 0 | AI7: 0 | AJ7: 0 | AK7: 0 | AL7: 0 | AM7: 0 | AN7: 0 | AO7: 0 | AP7: 0 | AQ7: 0 | AR7: 0 | AS7: 0 | AT7: 0 | AU7: 0 | AV7: 0 | AW7: 0 | AX7: 0
A8: prenew | B8: =[0]!prenew -> 0 | C8: 225 | D8: 0 | E8: 98 | F8: 0 | G8: 132 | H8: 0 | I8: 158 | J8: 0 | K8: 98 | L8: 1 | M8: 156 | N8: 0 | O8: 80 | P8: 0 | Q8: 80 | R8: 0 | S8: 197 | T8: 1 | U8: 91 | V8: 0 | W8: 69 | X8: 0 | Y8: 187 | Z8: 0 | AA8: 212 | AB8: 0 | AC8: 191 | AD8: 0 | AE8: 329 | AF8: 0 | AG8: 185 | AH8: 1 | AI8: 542 | AJ8: 0 | AK8: 273 | AL8: 0 | AM8: 285 | AN8: 0 | AO8: 240 | AP8: 0 | AQ8: 170 | AR8: 0 | AS8: 310 | AT8: 0 | AU8: 88 | AV8: 0 | AW8: 96 | AX8: 0
A9: postnew | B9: =[0]!postnew -> 0 | C9: 0 | D9: 0 | E9: 0 | F9: 0 | G9: 0 | H9: 0 | I9: 0 | J9: 0 | K9: 0 | L9: 0 | M9: 33 | N9: 0 | O9: 0 | P9: 0 | Q9: 31 | R9: 0 | S9: 81 | T9: 1 | U9: 53 | V9: 0 | W9: 21 | X9: 0 | Y9: 9 | Z9: 0 | AA9: 37 | AB9: 0 | AC9: 33 | AD9: 0 | AE9: 73 | AF9: 0 | AG9: 22 | AH9: 1 | AI9: 59 | AJ9: 0 | AK9: 39 | AL9: 0 | AM9: 55 | AN9: 0 | AO9: 45 | AP9: 0 | AQ9: 42 | AR9: 0 | AS9: 41 | AT9: 0 | AU9: 0 | AV9: 0 | AW9: 0 | AX9: 0
A10: weekdaynew | B10: =[0]!weekdaynew -> 0 | C10: 0 | D10: 0 | E10: 0 | F10: 0 | G10: 0 | H10: 0 | I10: 0 | J10: 0 | K10: 0 | L10: 0 | M10: 0 | N10: 0 | O10: 0 | P10: 0 | Q10: 46 | R10: 0 | S10: 23 | T10: 0 | U10: 0 | V10: 0 | W10: 18 | X10: 0 | Y10: 0 | Z10: 0 | AA10: 0 | AB10: 0 | AC10: 0 | AD10: 0 | AE10: 0 | AF10: 0 | AG10: 0 | AH10: 0 | AI10: 0 | AJ10: 0 | AK10: 0 | AL10: 0 | AM10: 0 | AN10: 0 | AO10: 0 | AP10: 0 | AQ10: 0 | AR10: 0 | AS10: 0 | AT10: 0 | AU10: 0 | AV10: 0 | AW10: 0 | AX10: 0
A11: weekendnew | B11: =[0]!weekendnew -> 0 | C11: 0 | D11: 0 | E11: 0 | F11: 0 | G11: 0 | H11: 0 | I11: 0 | J11: 0 | K11: 0 | L11: 0 | M11: 0 | N11: 0 | O11: 0 | P11: 0 | Q11: 18 | R11: 0 | S11: 0 | T11: 0 | U11: 0 | V11: 0 | W11: 0 | X11: 0 | Y11: 0 | Z11: 0 | AA11: 0 | AB11: 0 | AC11: 0 | AD11: 0 | AE11: 0 | AF11: 0 | AG11: 0 | AH11: 0 | AI11: 0 | AJ11: 0 | AK11: 0 | AL11: 0 | AM11: 0 | AN11: 0 | AO11: 0 | AP11: 0 | AQ11: 0 | AR11: 0 | AS11: 0 | AT11: 0 | AU11: 0 | AV11: 0 | AW11: 0 | AX11: 0
A12: mldold | B12: =[0]!mldold -> 0 | C12: 12419.07823 | D12: 0 | E12: 15151.34584 | F12: 0 | G12: 14966.87781 | H12: 0 | I12: 13105.96091 | J12: 0 | K12: 15629.4097 | L12: 0 | M12: 14045.82672 | N12: 0 | O12: 16269.83494 | P12: 0 | Q12: 16737.70476 | R12: 0 | S12: 12407.4984 | T12: 0 | U12: 12895.43158 | V12: 0 | W12: 15814.32604 | X12: 0 | Y12: 12744.00444 | Z12: 0 | AA12: 12216.32944 | AB12: 0 | AC12: 12377.45388 | AD12: 0 | AE12: 11612.13037 | AF12: 0 | AG12: 12781.18121 | AH12: 0 | AI12: 11389.53455 | AJ12: 0 | AK12: 12649.78236 | AL12: 0 | AM12: 12292.94266 | AN12: 0 | AO12: 11991.36345 | AP12: 0 | AQ12: 12206.71451 | AR12: 0 | AS12: 11700.16383 | AT12: 0 | AU12: 12851.45331 | AV12: 0 | AW12: 12890.69688 | AX12: 0
A13: besdold | B13: =[0]!besdold -> 0 | C13: 18655.41373 | D13: 0 | E13: 21387.68134 | F13: 0 | G13: 21260.68151 | H13: 0 | I13: 19342.29641 | J13: 0 | K13: 21865.74519 | L13: 0 | M13: 20282.16222 | N13: 0 | O13: 22506.17043 | P13: 0 | Q13: 23023.46297 | R13: 0 | S13: 18658.9018 | T13: 0 | U13: 19131.76708 | V13: 0 | W13: 22050.66153 | X13: 0 | Y13: 18980.33994 | Z13: 0 | AA13: 18452.66494 | AB13: 0 | AC13: 18613.78938 | AD13: 0 | AE13: 17848.46586 | AF13: 0 | AG13: 19017.51671 | AH13: 0 | AI13: 17625.87005 | AJ13: 0 | AK13: 18886.11786 | AL13: 0 | AM13: 18578.70087 | AN13: 0 | AO13: 18227.69895 | AP13: 0 | AQ13: 18443.05 | AR13: 0 | AS13: 17936.49933 | AT13: 0 | AU13: 19087.78881 | AV13: 0 | AW13: 19127.03238 | AX13: 0
A14: sldold | B14: =[0]!sldold -> 0 | C14: 16562.30871 | D14: 0 | E14: 19294.57632 | F14: 0 | G14: 19190.61845 | H14: 0 | I14: 17249.19139 | J14: 0 | K14: 19772.64017 | L14: 0 | M14: 18189.0572 | N14: 0 | O14: 20413.06541 | P14: 0 | Q14: 20961.44541 | R14: 0 | S14: 16575.27466 | T14: 0 | U14: 17038.66205 | V14: 0 | W14: 19957.55651 | X14: 0 | Y14: 16887.23491 | Z14: 0 | AA14: 16359.55992 | AB14: 0 | AC14: 16520.68436 | AD14: 0 | AE14: 15755.36084 | AF14: 0 | AG14: 16924.41169 | AH14: 0 | AI14: 15532.76503 | AJ14: 0 | AK14: 16793.01284 | AL14: 0 | AM14: 16516.6833 | AN14: 0 | AO14: 16134.59393 | AP14: 0 | AQ14: 16349.94498 | AR14: 0 | AS14: 15843.39431 | AT14: 0 | AU14: 16994.68379 | AV14: 0 | AW14: 17033.92736 | AX14: 0
A15: pdold | B15: =[0]!pdold -> 0 | C15: 23466.97651 | D15: 0 | E15: 26199.24412 | F15: 0 | G15: 26229.37168 | H15: 0 | I15: 24153.85919 | J15: 0 | K15: 26677.30797 | L15: 0 | M15: 25093.725 | N15: 0 | O15: 27317.73321 | P15: 0 | Q15: 28000.19863 | R15: 0 | S15: 23520.82216 | T15: 0 | U15: 23943.32986 | V15: 0 | W15: 26862.22431 | X15: 0 | Y15: 23791.90272 | Z15: 0 | AA15: 23264.22772 | AB15: 0 | AC15: 23425.35216 | AD15: 0 | AE15: 22660.02864 | AF15: 0 | AG15: 23829.07949 | AH15: 0 | AI15: 22437.43283 | AJ15: 0 | AK15: 23697.68064 | AL15: 0 | AM15: 23555.43653 | AN15: 0 | AO15: 23039.26173 | AP15: 0 | AQ15: 23254.61278 | AR15: 0 | AS15: 22748.06211 | AT15: 0 | AU15: 23899.35159 | AV15: 0 | AW15: 23938.59516 | AX15: 0
A16: asdold | B16: =[0]!asdold -> 0 | C16: 18655.41373 | D16: 0 | E16: 21387.68134 | F16: 0 | G16: 21330.55024 | H16: 0 | I16: 19342.29641 | J16: 0 | K16: 21865.74519 | L16: 0 | M16: 20282.16222 | N16: 0 | O16: 22506.17043 | P16: 0 | Q16: 23101.3772 | R16: 0 | S16: 19447.38487 | T16: 0 | U16: 19892.18311 | V16: 0 | W16: 29654.82186 | X16: 0 | Y16: 19740.75597 | Z16: 0 | AA16: 19213.08097 | AB16: 0 | AC16: 19374.20541 | AD16: 0 | AE16: 18608.8819 | AF16: 0 | AG16: 19777.93274 | AH16: 0 | AI16: 18386.28608 | AJ16: 0 | AK16: 19646.5339 | AL16: 0 | AM16: 19431.17681 | AN16: 0 | AO16: 18988.11498 | AP16: 0 | AQ16: 19203.46604 | AR16: 0 | AS16: 18696.91536 | AT16: 0 | AU16: 19848.20484 | AV16: 0 | AW16: 19887.44841 | AX16: 0
A17: pdweekdayold | B17: =[0]!pdweekdayold -> 0 | C17: 0 | D17: 0 | E17: 0 | F17: 0 | G17: 0 | H17: 0 | I17: 0 | J17: 0 | K17: 0 | L17: 0 | M17: 0 | N17: 0 | O17: 0 | P17: 0 | Q17: 77658.05951 | R17: 0 | S17: 0 | T17: 0 | U17: 0 | V17: 0 | W17: 74791.16629 | X17: 0 | Y17: 0 | Z17: 0 | AA17: 0 | AB17: 0 | AC17: 0 | AD17: 0 | AE17: 0 | AF17: 0 | AG17: 0 | AH17: 0 | AI17: 0 | AJ17: 0 | AK17: 0 | AL17: 0 | AM17: 0 | AN17: 0 | AO17: 0 | AP17: 0 | AQ17: 0 | AR17: 0 | AS17: 0 | AT17: 0 | AU17: 0 | AV17: 0 | AW17: 0 | AX17: 0
A18: asdweekdayold | B18: =[0]!asdweekdayold -> 0 | C18: 0 | D18: 0 | E18: 0 | F18: 0 | G18: 0 | H18: 0 | I18: 0 | J18: 0 | K18: 0 | L18: 0 | M18: 0 | N18: 0 | O18: 0 | P18: 0 | Q18: 0 | R18: 0 | S18: 57307.84138 | T18: 0 | U18: 0 | V18: 0 | W18: 77583.76384 | X18: 0 | Y18: 0 | Z18: 0 | AA18: 0 | AB18: 0 | AC18: 0 | AD18: 0 | AE18: 0 | AF18: 0 | AG18: 0 | AH18: 0 | AI18: 0 | AJ18: 0 | AK18: 0 | AL18: 0 | AM18: 0 | AN18: 0 | AO18: 0 | AP18: 0 | AQ18: 0 | AR18: 0 | AS18: 0 | AT18: 0 | AU18: 0 | AV18: 0 | AW18: 0 | AX18: 0
A19: pdweekendold | B19: =[0]!pdweekendold -> 0 | C19: 0 | D19: 0 | E19: 0 | F19: 0 | G19: 0 | H19: 0 | I19: 0 | J19: 0 | K19: 0 | L19: 0 | M19: 0 | N19: 0 | O19: 0 | P19: 0 | Q19: 104490.6803 | R19: 0 | S19: 0 | T19: 0 | U19: 0 | V19: 0 | W19: 0 | X19: 0 | Y19: 0 | Z19: 0 | AA19: 0 | AB19: 0 | AC19: 0 | AD19: 0 | AE19: 0 | AF19: 0 | AG19: 0 | AH19: 0 | AI19: 0 | AJ19: 0 | AK19: 0 | AL19: 0 | AM19: 0 | AN19: 0 | AO19: 0 | AP19: 0 | AQ19: 0 | AR19: 0 | AS19: 0 | AT19: 0 | AU19: 0 | AV19: 0 | AW19: 0 | AX19: 0
A20: mldnew | B20: =[0]!mldnew -> 0 | C20: 12336.92388 | D20: 0 | E20: 15195.73504 | F20: 0 | G20: 14165.9572 | H20: 0 | I20: 13126.4769 | J20: 0 | K20: 14808.8798 | L20: 1 | M20: 13564.82318 | N20: 0 | O20: 16277.31104 | P20: 0 | Q20: 16329.0089 | R20: 0 | S20: 12813.61111 | T20: 1 | U20: 13025.03536 | V20: 0 | W20: 15191.67885 | X20: 0 | Y20: 12703.30343 | Z20: 0 | AA20: 12416.44464 | AB20: 0 | AC20: 12366.863 | AD20: 0 | AE20: 11684.06495 | AF20: 0 | AG20: 13087.37121 | AH20: 1 | AI20: 11089.55239 | AJ20: 0 | AK20: 12487.16559 | AL20: 0 | AM20: 12289.57978 | AN20: 0 | AO20: 12040.42444 | AP20: 0 | AQ20: 12652.4199 | AR20: 0 | AS20: 11777.39631 | AT20: 0 | AU20: 12851.45331 | AV20: 0 | AW20: 12890.69688 | AX20: 0
A21: besdnew | B21: =[0]!besdnew -> 0 | C21: 18573.25938 | D21: 0 | E21: 21432.07054 | F21: 0 | G21: 20459.7609 | H21: 0 | I21: 19362.8124 | J21: 0 | K21: 21045.21529 | L21: 1 | M21: 19801.15868 | N21: 0 | O21: 22513.64654 | P21: 0 | Q21: 22614.76711 | R21: 0 | S21: 19065.01451 | T21: 1 | U21: 19261.37086 | V21: 0 | W21: 21428.01435 | X21: 0 | Y21: 18939.63892 | Z21: 0 | AA21: 18652.78013 | AB21: 0 | AC21: 18603.1985 | AD21: 0 | AE21: 17920.40045 | AF21: 0 | AG21: 19323.70671 | AH21: 1 | AI21: 17325.88789 | AJ21: 0 | AK21: 18723.50109 | AL21: 0 | AM21: 18575.33799 | AN21: 0 | AO21: 18276.75993 | AP21: 0 | AQ21: 18888.75539 | AR21: 0 | AS21: 18013.7318 | AT21: 0 | AU21: 19087.78881 | AV21: 0 | AW21: 19127.03238 | AX21: 0
A22: sldnew | B22: =[0]!sldnew -> 0 | C22: 16480.15436 | D22: 0 | E22: 19338.96552 | F22: 0 | G22: 18389.69785 | H22: 0 | I22: 17269.70738 | J22: 0 | K22: 18952.11027 | L22: 1 | M22: 17708.05366 | N22: 0 | O22: 20420.54152 | P22: 0 | Q22: 20552.74955 | R22: 0 | S22: 16981.38737 | T22: 1 | U22: 17168.26583 | V22: 0 | W22: 19334.90933 | X22: 0 | Y22: 16846.5339 | Z22: 0 | AA22: 16559.67511 | AB22: 0 | AC22: 16510.09347 | AD22: 0 | AE22: 15827.29542 | AF22: 0 | AG22: 17230.60168 | AH22: 1 | AI22: 15232.78287 | AJ22: 0 | AK22: 16630.39606 | AL22: 0 | AM22: 16513.32043 | AN22: 0 | AO22: 16183.65491 | AP22: 0 | AQ22: 16795.65037 | AR22: 0 | AS22: 15920.62678 | AT22: 0 | AU22: 16994.68379 | AV22: 0 | AW22: 17033.92736 | AX22: 0
A23: pdnew | B23: =[0]!pdnew -> 0 | C23: 23384.82216 | D23: 0 | E23: 26243.63332 | F23: 0 | G23: 25428.45107 | H23: 0 | I23: 24174.37518 | J23: 0 | K23: 25856.77808 | L23: 1 | M23: 24612.72146 | N23: 0 | O23: 27325.20932 | P23: 0 | Q23: 27591.50277 | R23: 0 | S23: 23926.93488 | T23: 1 | U23: 24072.93364 | V23: 0 | W23: 26239.57713 | X23: 0 | Y23: 23751.2017 | Z23: 0 | AA23: 23464.34291 | AB23: 0 | AC23: 23414.76128 | AD23: 0 | AE23: 22731.96323 | AF23: 0 | AG23: 24135.26949 | AH23: 1 | AI23: 22137.45067 | AJ23: 0 | AK23: 23535.06387 | AL23: 0 | AM23: 23552.07365 | AN23: 0 | AO23: 23088.32271 | AP23: 0 | AQ23: 23700.31817 | AR23: 0 | AS23: 22825.29458 | AT23: 0 | AU23: 23899.35159 | AV23: 0 | AW23: 23938.59516 | AX23: 0
A24: asdnew | B24: =[0]!asdnew -> 0 | C24: 18573.25938 | D24: 0 | E24: 21432.07054 | F24: 0 | G24: 20529.62964 | H24: 0 | I24: 19362.8124 | J24: 0 | K24: 21045.21529 | L24: 1 | M24: 19801.15868 | N24: 0 | O24: 22513.64654 | P24: 0 | Q24: 22692.68133 | R24: 0 | S24: 19853.49759 | T24: 1 | U24: 20021.78689 | V24: 0 | W24: 29032.17468 | X24: 0 | Y24: 19700.05496 | Z24: 0 | AA24: 19413.19617 | AB24: 0 | AC24: 19363.61453 | AD24: 0 | AE24: 18680.81648 | AF24: 0 | AG24: 20084.12274 | AH24: 1 | AI24: 18086.30392 | AJ24: 0 | AK24: 19483.91712 | AL24: 0 | AM24: 19427.81394 | AN24: 0 | AO24: 19037.17597 | AP24: 0 | AQ24: 19649.17143 | AR24: 0 | AS24: 18774.14784 | AT24: 0 | AU24: 19848.20484 | AV24: 0 | AW24: 19887.44841 | AX24: 0
A25: pdweekdaynew | B25: =[0]!pdweekdaynew -> 0 | C25: 0 | D25: 0 | E25: 0 | F25: 0 | G25: 0 | H25: 0 | I25: 0 | J25: 0 | K25: 0 | L25: 0 | M25: 0 | N25: 0 | O25: 0 | P25: 0 | Q25: 77249.36364 | R25: 0 | S25: 0 | T25: 0 | U25: 0 | V25: 0 | W25: 74168.51911 | X25: 0 | Y25: 0 | Z25: 0 | AA25: 0 | AB25: 0 | AC25: 0 | AD25: 0 | AE25: 0 | AF25: 0 | AG25: 0 | AH25: 0 | AI25: 0 | AJ25: 0 | AK25: 0 | AL25: 0 | AM25: 0 | AN25: 0 | AO25: 0 | AP25: 0 | AQ25: 0 | AR25: 0 | AS25: 0 | AT25: 0 | AU25: 0 | AV25: 0 | AW25: 0 | AX25: 0
A26: asdweekdaynew | B26: =[0]!asdweekdaynew -> 0 | C26: 0 | D26: 0 | E26: 0 | F26: 0 | G26: 0 | H26: 0 | I26: 0 | J26: 0 | K26: 0 | L26: 0 | M26: 0 | N26: 0 | O26: 0 | P26: 0 | Q26: 0 | R26: 0 | S26: 57713.9541 | T26: 1 | U26: 0 | V26: 0 | W26: 76961.11666 | X26: 0 | Y26: 0 | Z26: 0 | AA26: 0 | AB26: 0 | AC26: 0 | AD26: 0 | AE26: 0 | AF26: 0 | AG26: 0 | AH26: 0 | AI26: 0 | AJ26: 0 | AK26: 0 | AL26: 0 | AM26: 0 | AN26: 0 | AO26: 0 | AP26: 0 | AQ26: 0 | AR26: 0 | AS26: 0 | AT26: 0 | AU26: 0 | AV26: 0 | AW26: 0 | AX26: 0
A27: pdweekendnew | B27: =[0]!pdweekendnew -> 0 | C27: 0 | D27: 0 | E27: 0 | F27: 0 | G27: 0 | H27: 0 | I27: 0 | J27: 0 | K27: 0 | L27: 0 | M27: 0 | N27: 0 | O27: 0 | P27: 0 | Q27: 104081.9845 | R27: 0 | S27: 0 | T27: 0 | U27: 0 | V27: 0 | W27: 0 | X27: 0 | Y27: 0 | Z27: 0 | AA27: 0 | AB27: 0 | AC27: 0 | AD27: 0 | AE27: 0 | AF27: 0 | AG27: 0 | AH27: 0 | AI27: 0 | AJ27: 0 | AK27: 0 | AL27: 0 | AM27: 0 | AN27: 0 | AO27: 0 | AP27: 0 | AQ27: 0 | AR27: 0 | AS27: 0 | AT27: 0 | AU27: 0 | AV27: 0 | AW27: 0 | AX27: 0
A28: mldyear | B28: =[0]!mldyear -> 0 | C28: 12371.15486 | D28: 0 | E28: 15177.23954 | F28: 0 | G28: 14499.67412 | H28: 0 | I28: 13117.92857 | J28: 0 | K28: 15150.76725 | L28: 1 | M28: 13765.24132 | N28: 0 | O28: 16274.196 | P28: 0 | Q28: 16499.29884 | R28: 0 | S28: 12644.39748 | T28: 1 | U28: 12971.03378 | V28: 0 | W28: 15451.11518 | X28: 0 | Y28: 12720.26218 | Z28: 0 | AA28: 12333.0633 | AB28: 0 | AC28: 12371.27587 | AD28: 0 | AE28: 11654.09221 | AF28: 0 | AG28: 12959.79204 | AH28: 1 | AI28: 11214.54496 | AJ28: 0 | AK28: 12554.92258 | AL28: 0 | AM28: 12290.98098 | AN28: 0 | AO28: 12019.98236 | AP28: 0 | AQ28: 12466.70932 | AR28: 0 | AS28: 11745.21611 | AT28: 0 | AU28: 12851.45331 | AV28: 0 | AW28: 12890.69688 | AX28: 0
A29: besdyear | B29: =[0]!besdyear -> 0 | C29: 18607.49036 | D29: 0 | E29: 21413.57504 | F29: 0 | G29: 20793.47782 | H29: 0 | I29: 19354.26407 | J29: 0 | K29: 21387.10275 | L29: 1 | M29: 20001.57682 | N29: 0 | O29: 22510.5315 | P29: 0 | Q29: 22785.05705 | R29: 0 | S29: 18895.80088 | T29: 1 | U29: 19207.36928 | V29: 0 | W29: 21687.45068 | X29: 0 | Y29: 18956.59768 | Z29: 0 | AA29: 18569.3988 | AB29: 0 | AC29: 18607.61136 | AD29: 0 | AE29: 17890.4277 | AF29: 0 | AG29: 19196.12754 | AH29: 1 | AI29: 17450.88046 | AJ29: 0 | AK29: 18791.25808 | AL29: 0 | AM29: 18576.73919 | AN29: 0 | AO29: 18256.31786 | AP29: 0 | AQ29: 18703.04481 | AR29: 0 | AS29: 17981.55161 | AT29: 0 | AU29: 19087.78881 | AV29: 0 | AW29: 19127.03238 | AX29: 0
A30: sldyear | B30: =[0]!sldyear -> 0 | C30: 16514.38534 | D30: 0 | E30: 19320.47002 | F30: 0 | G30: 18723.41477 | H30: 0 | I30: 17261.15905 | J30: 0 | K30: 19293.99773 | L30: 1 | M30: 17908.4718 | N30: 0 | O30: 20417.42648 | P30: 0 | Q30: 20723.03949 | R30: 0 | S30: 16812.17374 | T30: 1 | U30: 17114.26426 | V30: 0 | W30: 19594.34565 | X30: 0 | Y30: 16863.49266 | Z30: 0 | AA30: 16476.29378 | AB30: 0 | AC30: 16514.50634 | AD30: 0 | AE30: 15797.32268 | AF30: 0 | AG30: 17103.02252 | AH30: 1 | AI30: 15357.77544 | AJ30: 0 | AK30: 16698.15305 | AL30: 0 | AM30: 16514.72163 | AN30: 0 | AO30: 16163.21284 | AP30: 0 | AQ30: 16609.93979 | AR30: 0 | AS30: 15888.44658 | AT30: 0 | AU30: 16994.68379 | AV30: 0 | AW30: 17033.92736 | AX30: 0
A31: pdyear | B31: =[0]!pdyear -> 0 | C31: 23419.05314 | D31: 0 | E31: 26225.13782 | F31: 0 | G31: 25762.16799 | H31: 0 | I31: 24165.82685 | J31: 0 | K31: 26198.66553 | L31: 1 | M31: 24813.1396 | N31: 0 | O31: 27322.09428 | P31: 0 | Q31: 27761.79271 | R31: 0 | S31: 23757.72124 | T31: 1 | U31: 24018.93206 | V31: 0 | W31: 26499.01346 | X31: 0 | Y31: 23768.16046 | Z31: 0 | AA31: 23380.96158 | AB31: 0 | AC31: 23419.17414 | AD31: 0 | AE31: 22701.99048 | AF31: 0 | AG31: 24007.69032 | AH31: 1 | AI31: 22262.44324 | AJ31: 0 | AK31: 23602.82086 | AL31: 0 | AM31: 23553.47485 | AN31: 0 | AO31: 23067.88064 | AP31: 0 | AQ31: 23514.6076 | AR31: 0 | AS31: 22793.11439 | AT31: 0 | AU31: 23899.35159 | AV31: 0 | AW31: 23938.59516 | AX31: 0
A32: asdyear | B32: =[0]!asdyear -> 0 | C32: 18607.49036 | D32: 0 | E32: 21413.57504 | F32: 0 | G32: 20863.34655 | H32: 0 | I32: 19354.26407 | J32: 0 | K32: 21387.10275 | L32: 1 | M32: 20001.57682 | N32: 0 | O32: 22510.5315 | P32: 0 | Q32: 22862.97128 | R32: 0 | S32: 19684.28396 | T32: 1 | U32: 19967.78531 | V32: 0 | W32: 29291.61101 | X32: 0 | Y32: 19717.01371 | Z32: 0 | AA32: 19329.81484 | AB32: 0 | AC32: 19368.0274 | AD32: 0 | AE32: 18650.84374 | AF32: 0 | AG32: 19956.54357 | AH32: 1 | AI32: 18211.29649 | AJ32: 0 | AK32: 19551.67411 | AL32: 0 | AM32: 19429.21514 | AN32: 0 | AO32: 19016.73389 | AP32: 0 | AQ32: 19463.46085 | AR32: 0 | AS32: 18741.96764 | AT32: 0 | AU32: 19848.20484 | AV32: 0 | AW32: 19887.44841 | AX32: 0
A33: pdweekdayyear | B33: =[0]!pdweekdayyear -> 0 | C33: 0 | D33: 0 | E33: 0 | F33: 0 | G33: 0 | H33: 0 | I33: 0 | J33: 0 | K33: 0 | L33: 0 | M33: 0 | N33: 0 | O33: 0 | P33: 0 | Q33: 77419.65358 | R33: 0 | S33: 0 | T33: 0 | U33: 0 | V33: 0 | W33: 74427.95544 | X33: 0 | Y33: 0 | Z33: 0 | AA33: 0 | AB33: 0 | AC33: 0 | AD33: 0 | AE33: 0 | AF33: 0 | AG33: 0 | AH33: 0 | AI33: 0 | AJ33: 0 | AK33: 0 | AL33: 0 | AM33: 0 | AN33: 0 | AO33: 0 | AP33: 0 | AQ33: 0 | AR33: 0 | AS33: 0 | AT33: 0 | AU33: 0 | AV33: 0 | AW33: 0 | AX33: 0
A34: asdweekdayyear | B34: =[0]!asdweekdayyear -> 0 | C34: 0 | D34: 0 | E34: 0 | F34: 0 | G34: 0 | H34: 0 | I34: 0 | J34: 0 | K34: 0 | L34: 0 | M34: 0 | N34: 0 | O34: 0 | P34: 0 | Q34: 0 | R34: 0 | S34: 57544.74047 | T34: 1 | U34: 0 | V34: 0 | W34: 77220.55298 | X34: 0 | Y34: 0 | Z34: 0 | AA34: 0 | AB34: 0 | AC34: 0 | AD34: 0 | AE34: 0 | AF34: 0 | AG34: 0 | AH34: 0 | AI34: 0 | AJ34: 0 | AK34: 0 | AL34: 0 | AM34: 0 | AN34: 0 | AO34: 0 | AP34: 0 | AQ34: 0 | AR34: 0 | AS34: 0 | AT34: 0 | AU34: 0 | AV34: 0 | AW34: 0 | AX34: 0
A35: pdweekendyear | B35: =[0]!pdweekendyear -> 0 | C35: 0 | D35: 0 | E35: 0 | F35: 0 | G35: 0 | H35: 0 | I35: 0 | J35: 0 | K35: 0 | L35: 0 | M35: 0 | N35: 0 | O35: 0 | P35: 0 | Q35: 104252.2744 | R35: 0 | S35: 0 | T35: 0 | U35: 0 | V35: 0 | W35: 0 | X35: 0 | Y35: 0 | Z35: 0 | AA35: 0 | AB35: 0 | AC35: 0 | AD35: 0 | AE35: 0 | AF35: 0 | AG35: 0 | AH35: 0 | AI35: 0 | AJ35: 0 | AK35: 0 | AL35: 0 | AM35: 0 | AN35: 0 | AO35: 0 | AP35: 0 | AQ35: 0 | AR35: 0 | AS35: 0 | AT35: 0 | AU35: 0 | AV35: 0 | AW35: 0 | AX35: 0
A36: mldlastyear | B36: =[0]!mldlastyear -> 0 | C36: 12050.22 | D36: 0 | E36: 14706.98 | F36: 0 | G36: 14536.1 | H36: 0 | I36: 13048.92 | J36: 0 | K36: 15171.59 | L36: 0 | M36: 14106.03 | N36: 0 | O36: 16589.67 | P36: 0 | Q36: 16230.93 | R36: 0 | S36: 14529.83 | T36: 0 | U36: 12861.07 | V36: 0 | W36: 16536.41 | X36: 0 | Y36: 12312.93 | Z36: 0 | AA36: 11853.76 | AB36: 0 | AC36: 12016.33 | AD36: 0 | AE36: 11771.35 | AF36: 0 | AG36: 12773.08 | AH36: 0 | AI36: 11254.39 | AJ36: 0 | AK36: 12370.3 | AL36: 0 | AM36: 11954.58 | AN36: 0 | AO36: 11692.78 | AP36: 0 | AQ36: 12081.42 | AR36: 0 | AS36: 11420.64 | AT36: 0 | AU36: 12406.19 | AV36: 0 | AW36: 12450.83 | AX36: 0
A37: besdlastyear | B37: =[0]!besdlastyear -> 0 | C37: 14446.49 | D37: 0 | E37: 17037.88 | F37: 0 | G37: 16972.64 | H37: 0 | I37: 15260.26 | J37: 0 | K37: 17461.69 | L37: 0 | M37: 18665.47 | N37: 0 | O37: 21361.33 | P37: 0 | Q37: 18267.24 | R37: 0 | S37: 15687.06 | T37: 0 | U37: 14744.24 | V37: 0 | W37: 18448.26 | X37: 0 | Y37: 14301.25 | Z37: 0 | AA37: 13842.09 | AB37: 0 | AC37: 14004.66 | AD37: 0 | AE37: 13531.6 | AF37: 0 | AG37: 14600.18 | AH37: 0 | AI37: 13042.08 | AJ37: 0 | AK37: 14358.63 | AL37: 0 | AM37: 13990.89 | AN37: 0 | AO37: 13681.11 | AP37: 0 | AQ37: 14069.75 | AR37: 0 | AS37: 13408.97 | AT37: 0 | AU37: 14395.19 | AV37: 0 | AW37: 14439.83 | AX37: 0
A38: sldlastyear | B38: =[0]!sldlastyear -> 0 | C38: 16072.78 | D38: 0 | E38: 18729.53 | F38: 0 | G38: 18636.82 | H38: 0 | I38: 16858.74 | J38: 0 | K38: 19194.14 | L38: 0 | M38: 17649.93 | N38: 0 | O38: 20399.49 | P38: 0 | Q38: 20331.65 | R38: 0 | S38: 18083.41 | T38: 0 | U38: 16670.89 | V38: 0 | W38: 20404.25 | X38: 0 | Y38: 16335.48 | Z38: 0 | AA38: 15876.31 | AB38: 0 | AC38: 16038.89 | AD38: 0 | AE38: 15381.77 | AF38: 0 | AG38: 16588.4 | AH38: 0 | AI38: 15076.31 | AJ38: 0 | AK38: 16392.85 | AL38: 0 | AM38: 16055.3 | AN38: 0 | AO38: 15715.33 | AP38: 0 | AQ38: 16103.97 | AR38: 0 | AS38: 15443.19 | AT38: 0 | AU38: 16429.19 | AV38: 0 | AW38: 16473.83 | AX38: 0
A39: pdlastyear | B39: =[0]!pdlastyear -> 0 | C39: 22776.34 | D39: 0 | E39: 25433.09 | F39: 0 | G39: 25470.56 | H39: 0 | I39: 23440.76 | J39: 0 | K39: 25897.7 | L39: 0 | M39: 24353.49 | N39: 0 | O39: 26748.54 | P39: 0 | Q39: 27165.39 | R39: 0 | S39: 24009.61 | T39: 0 | U39: 23196.62 | V39: 0 | W39: 26850.62 | X39: 0 | Y39: 23039.04 | Z39: 0 | AA39: 22579.88 | AB39: 0 | AC39: 22742.45 | AD39: 0 | AE39: 21949.23 | AF39: 0 | AG39: 23291.96 | AH39: 0 | AI39: 21779.87 | AJ39: 0 | AK39: 23096.41 | AL39: 0 | AM39: 22889.04 | AN39: 0 | AO39: 22418.89 | AP39: 0 | AQ39: 22807.53 | AR39: 0 | AS39: 22146.75 | AT39: 0 | AU39: 23132.19 | AV39: 0 | AW39: 23176.83 | AX39: 0
A40: asdlastyear | B40: =[0]!asdlastyear -> 0 | C40: 18104.92 | D40: 0 | E40: 20761.67 | F40: 0 | G40: 20714.42 | H40: 0 | I40: 18783.41 | J40: 0 | K40: 21226.28 | L40: 0 | M40: 19682.07 | N40: 0 | O40: 22324.16 | P40: 0 | Q40: 22409.25 | R40: 0 | S40: 20545.71 | T40: 0 | U40: 19294.78 | V40: 0 | W40: 29561.88 | X40: 0 | Y40: 19105.89 | Z40: 0 | AA40: 18646.72 | AB40: 0 | AC40: 18809.29 | AD40: 0 | AE40: 18016.08 | AF40: 0 | AG40: 19358.81 | AH40: 0 | AI40: 17846.72 | AJ40: 0 | AK40: 19163.26 | AL40: 0 | AM40: 18884.91 | AN40: 0 | AO40: 18485.74 | AP40: 0 | AQ40: 18874.38 | AR40: 0 | AS40: 18213.6 | AT40: 0 | AU40: 19199.19 | AV40: 0 | AW40: 19243.83 | AX40: 0
A41: pdweekdaylastyear | B41: =[0]!pdweekdaylastyear -> 0 | C41: 0 | D41: 0 | E41: 0 | F41: 0 | G41: 0 | H41: 0 | I41: 0 | J41: 0 | K41: 0 | L41: 0 | M41: 0 | N41: 0 | O41: 0 | P41: 0 | Q41: 75376.91 | R41: 0 | S41: 0 | T41: 0 | U41: 0 | V41: 0 | W41: 73383.58 | X41: 0 | Y41: 0 | Z41: 0 | AA41: 0 | AB41: 0 | AC41: 0 | AD41: 0 | AE41: 0 | AF41: 0 | AG41: 0 | AH41: 0 | AI41: 0 | AJ41: 0 | AK41: 0 | AL41: 0 | AM41: 0 | AN41: 0 | AO41: 0 | AP41: 0 | AQ41: 0 | AR41: 0 | AS41: 0 | AT41: 0 | AU41: 0 | AV41: 0 | AW41: 0 | AX41: 0
A42: asdweekdaylastyear | B42: =[0]!asdweekdaylastyear -> 0 | C42: 0 | D42: 0 | E42: 0 | F42: 0 | G42: 0 | H42: 0 | I42: 0 | J42: 0 | K42: 0 | L42: 0 | M42: 0 | N42: 0 | O42: 0 | P42: 0 | Q42: 0 | R42: 0 | S42: 59779.4 | T42: 0 | U42: 0 | V42: 0 | W42: 76094.84 | X42: 0 | Y42: 0 | Z42: 0 | AA42: 0 | AB42: 0 | AC42: 0 | AD42: 0 | AE42: 0 | AF42: 0 | AG42: 0 | AH42: 0 | AI42: 0 | AJ42: 0 | AK42: 0 | AL42: 0 | AM42: 0 | AN42: 0 | AO42: 0 | AP42: 0 | AQ42: 0 | AR42: 0 | AS42: 0 | AT42: 0 | AU42: 0 | AV42: 0 | AW42: 0 | AX42: 0
A43: pdweekendlastyear | B43: =[0]!pdweekendlastyear -> 0 | C43: 0 | D43: 0 | E43: 0 | F43: 0 | G43: 0 | H43: 0 | I43: 0 | J43: 0 | K43: 0 | L43: 0 | M43: 0 | N43: 0 | O43: 0 | P43: 0 | Q43: 101427.99 | R43: 0 | S43: 0 | T43: 0 | U43: 0 | V43: 0 | W43: 0 | X43: 0 | Y43: 0 | Z43: 0 | AA43: 0 | AB43: 0 | AC43: 0 | AD43: 0 | AE43: 0 | AF43: 0 | AG43: 0 | AH43: 0 | AI43: 0 | AJ43: 0 | AK43: 0 | AL43: 0 | AM43: 0 | AN43: 0 | AO43: 0 | AP43: 0 | AQ43: 0 | AR43: 0 | AS43: 0 | AT43: 0 | AU43: 0 | AV43: 0 | AW43: 0 | AX43: 0
A44: MLD&SLCN | B44: =mldfinal -> 0 | C44: 12371.15486 | D44: 0 | E44: 15177.23954 | F44: 0 | G44: 14536.1 | H44: 0 | I44: 13117.92857 | J44: 0 | K44: 15171.59 | L44: 1 | M44: 14106.03 | N44: 0 | O44: 16589.67 | P44: 0 | Q44: 16499.29884 | R44: 0 | S44: 14529.83 | T44: 0 | U44: 12971.03378 | V44: 0 | W44: 16536.41 | X44: 0 | Y44: 12720.26218 | Z44: 0 | AA44: 12333.0633 | AB44: 0 | AC44: 12371.27587 | AD44: 0 | AE44: 11771.35 | AF44: 0 | AG44: 12959.79204 | AH44: 1 | AI44: 11254.39 | AJ44: 0 | AK44: 12554.92258 | AL44: 0 | AM44: 12290.98098 | AN44: 0 | AO44: 12019.98236 | AP44: 0 | AQ44: 12466.70932 | AR44: 0 | AS44: 11745.21611 | AT44: 0 | AU44: 12851.45331 | AV44: 0 | AW44: 12890.69688 | AX44: 0
A45: BESD | B45: =besdfinal -> 0 | C45: 18607.49036 | D45: 0 | E45: 21413.57504 | F45: 0 | G45: 20793.47782 | H45: 0 | I45: 19354.26407 | J45: 0 | K45: 21387.10275 | L45: 1 | M45: 20001.57682 | N45: 0 | O45: 22510.5315 | P45: 0 | Q45: 22785.05705 | R45: 0 | S45: 18895.80088 | T45: 1 | U45: 19207.36928 | V45: 0 | W45: 21687.45068 | X45: 0 | Y45: 18956.59768 | Z45: 0 | AA45: 18569.3988 | AB45: 0 | AC45: 18607.61136 | AD45: 0 | AE45: 17890.4277 | AF45: 0 | AG45: 19196.12754 | AH45: 1 | AI45: 17450.88046 | AJ45: 0 | AK45: 18791.25808 | AL45: 0 | AM45: 18576.73919 | AN45: 0 | AO45: 18256.31786 | AP45: 0 | AQ45: 18703.04481 | AR45: 0 | AS45: 17981.55161 | AT45: 0 | AU45: 19087.78881 | AV45: 0 | AW45: 19127.03238 | AX45: 0
A46: SLD | B46: =sldfinal -> 0 | C46: 16514.38534 | D46: 0 | E46: 19320.47002 | F46: 0 | G46: 18723.41477 | H46: 0 | I46: 17261.15905 | J46: 0 | K46: 19293.99773 | L46: 1 | M46: 17908.4718 | N46: 0 | O46: 20417.42648 | P46: 0 | Q46: 20723.03949 | R46: 0 | S46: 18083.41 | T46: 0 | U46: 17114.26426 | V46: 0 | W46: 20404.25 | X46: 0 | Y46: 16863.49266 | Z46: 0 | AA46: 16476.29378 | AB46: 0 | AC46: 16514.50634 | AD46: 0 | AE46: 15797.32268 | AF46: 0 | AG46: 17103.02252 | AH46: 1 | AI46: 15357.77544 | AJ46: 0 | AK46: 16698.15305 | AL46: 0 | AM46: 16514.72163 | AN46: 0 | AO46: 16163.21284 | AP46: 0 | AQ46: 16609.93979 | AR46: 0 | AS46: 15888.44658 | AT46: 0 | AU46: 16994.68379 | AV46: 0 | AW46: 17033.92736 | AX46: 0
A47: PD&PMLD | B47: =pdfinal -> 0 | C47: 23419.05314 | D47: 0 | E47: 26225.13782 | F47: 0 | G47: 25762.16799 | H47: 0 | I47: 24165.82685 | J47: 0 | K47: 26198.66553 | L47: 1 | M47: 24813.1396 | N47: 0 | O47: 27322.09428 | P47: 0 | Q47: 27761.79271 | R47: 0 | S47: 24009.61 | T47: 0 | U47: 24018.93206 | V47: 0 | W47: 26850.62 | X47: 0 | Y47: 23768.16046 | Z47: 0 | AA47: 23380.96158 | AB47: 0 | AC47: 23419.17414 | AD47: 0 | AE47: 22701.99048 | AF47: 0 | AG47: 24007.69032 | AH47: 1 | AI47: 22262.44324 | AJ47: 0 | AK47: 23602.82086 | AL47: 0 | AM47: 23553.47485 | AN47: 0 | AO47: 23067.88064 | AP47: 0 | AQ47: 23514.6076 | AR47: 0 | AS47: 22793.11439 | AT47: 0 | AU47: 23899.35159 | AV47: 0 | AW47: 23938.59516 | AX47: 0
A48: ASD | B48: =asdfinal -> 0 | C48: 18607.49036 | D48: 0 | E48: 21413.57504 | F48: 0 | G48: 20863.34655 | H48: 0 | I48: 19354.26407 | J48: 0 | K48: 21387.10275 | L48: 1 | M48: 20001.57682 | N48: 0 | O48: 22510.5315 | P48: 0 | Q48: 22862.97128 | R48: 0 | S48: 20545.71 | T48: 0 | U48: 19967.78531 | V48: 0 | W48: 29561.88 | X48: 0 | Y48: 19717.01371 | Z48: 0 | AA48: 19329.81484 | AB48: 0 | AC48: 19368.0274 | AD48: 0 | AE48: 18650.84374 | AF48: 0 | AG48: 19956.54357 | AH48: 1 | AI48: 18211.29649 | AJ48: 0 | AK48: 19551.67411 | AL48: 0 | AM48: 19429.21514 | AN48: 0 | AO48: 19016.73389 | AP48: 0 | AQ48: 19463.46085 | AR48: 0 | AS48: 18741.96764 | AT48: 0 | AU48: 19848.20484 | AV48: 0 | AW48: 19887.44841 | AX48: 0
A49: WeekdayPD&PMLD | B49: =pd5final -> 0 | C49: 0 | D49: 0 | E49: 0 | F49: 0 | G49: 0 | H49: 0 | I49: 0 | J49: 0 | K49: 0 | L49: 0 | M49: 0 | N49: 0 | O49: 0 | P49: 0 | Q49: 77419.65358 | R49: 0 | S49: 0 | T49: 0 | U49: 0 | V49: 0 | W49: 74427.95544 | X49: 0 | Y49: 0 | Z49: 0 | AA49: 0 | AB49: 0 | AC49: 0 | AD49: 0 | AE49: 0 | AF49: 0 | AG49: 0 | AH49: 0 | AI49: 0 | AJ49: 0 | AK49: 0 | AL49: 0 | AM49: 0 | AN49: 0 | AO49: 0 | AP49: 0 | AQ49: 0 | AR49: 0 | AS49: 0 | AT49: 0 | AU49: 0 | AV49: 0 | AW49: 0 | AX49: 0
A50: WeekdayASD | B50: =asd5final -> 0 | C50: 0 | D50: 0 | E50: 0 | F50: 0 | G50: 0 | H50: 0 | I50: 0 | J50: 0 | K50: 0 | L50: 0 | M50: 0 | N50: 0 | O50: 0 | P50: 0 | Q50: 0 | R50: 0 | S50: 59779.4 | T50: 0 | U50: 0 | V50: 0 | W50: 77220.55298 | X50: 0 | Y50: 0 | Z50: 0 | AA50: 0 | AB50: 0 | AC50: 0 | AD50: 0 | AE50: 0 | AF50: 0 | AG50: 0 | AH50: 0 | AI50: 0 | AJ50: 0 | AK50: 0 | AL50: 0 | AM50: 0 | AN50: 0 | AO50: 0 | AP50: 0 | AQ50: 0 | AR50: 0 | AS50: 0 | AT50: 0 | AU50: 0 | AV50: 0 | AW50: 0 | AX50: 0
A51: WeekendPD&PMLD | B51: =pd7final -> 0 | C51: 0 | D51: 0 | E51: 0 | F51: 0 | G51: 0 | H51: 0 | I51: 0 | J51: 0 | K51: 0 | L51: 0 | M51: 0 | N51: 0 | O51: 0 | P51: 0 | Q51: 104252.2744 | R51: 0 | S51: 0 | T51: 0 | U51: 0 | V51: 0 | W51: 0 | X51: 0 | Y51: 0 | Z51: 0 | AA51: 0 | AB51: 0 | AC51: 0 | AD51: 0 | AE51: 0 | AF51: 0 | AG51: 0 | AH51: 0 | AI51: 0 | AJ51: 0 | AK51: 0 | AL51: 0 | AM51: 0 | AN51: 0 | AO51: 0 | AP51: 0 | AQ51: 0 | AR51: 0 | AS51: 0 | AT51: 0 | AU51: 0 | AV51: 0 | AW51: 0 | AX51: 0
A52: integrity | B52: =[0]!integrity -> ERROR | C52: OK | D52: =IF(C52="OK",0,1) -> 0 | E52: OK | F52: =IF(E52="OK",0,1) -> 0 | G52: OK | H52: =IF(G52="OK",0,1) -> 0 | I52: OK | J52: =IF(I52="OK",0,1) -> 0 | K52: OK | L52: =IF(K52="OK",0,1) -> 0 | M52: OK | N52: =IF(M52="OK",0,1) -> 0 | O52: OK | P52: =IF(O52="OK",0,1) -> 0 | Q52: OK | R52: =IF(Q52="OK",0,1) -> 0 | S52: OK | T52: =IF(S52="OK",0,1) -> 0 | U52: OK | V52: =IF(U52="OK",0,1) -> 0 | W52: OK | X52: =IF(W52="OK",0,1) -> 0 | Y52: OK | Z52: =IF(Y52="OK",0,1) -> 0 | AA52: OK | AB52: =IF(AA52="OK",0,1) -> 0 | AC52: OK | AD52: =IF(AC52="OK",0,1) -> 0 | AE52: OK | AF52: =IF(AE52="OK",0,1) -> 0 | AG52: OK | AH52: =IF(AG52="OK",0,1) -> 0 | AI52: OK | AJ52: =IF(AI52="OK",0,1) -> 0 | AK52: OK | AL52: =IF(AK52="OK",0,1) -> 0 | AM52: OK | AN52: =IF(AM52="OK",0,1) -> 0 | AO52: OK | AP52: =IF(AO52="OK",0,1) -> 0 | AQ52: OK | AR52: =IF(AQ52="OK",0,1) -> 0 | AS52: OK | AT52: =IF(AS52="OK",0,1) -> 0 | AU52: OK | AV52: =IF(AU52="OK",0,1) -> 0 | AW52: OK | AX52: =IF(AW52="OK",0,1) -> 0
A53: nurseryfte | B53: =nurseryfte -> 0 | C53: 0 | E53: 0 | G53: 0 | I53: 0 | K53: 0 | M53: 0 | O53: 0 | Q53: 0 | S53: 0 | U53: 0 | W53: 0 | Y53: 0 | AA53: 6 | AC53: 10 | AE53: 10 | AG53: 8 | AI53: 15 | AK53: 6 | AM53: 12 | AO53: 5 | AQ53: 12 | AS53: 6 | AU53: 0 | AW53: 0
A54: nurserycash | B54: =nurserycash -> 0 | C54: 0 | E54: 0 | G54: 0 | I54: 0 | K54: 0 | M54: 0 | O54: 0 | Q54: 0 | S54: 0 | U54: 0 | W54: 0 | Y54: 0 | AA54: 109359 | AC54: 200119 | AE54: 200119 | AG54: 127959 | AI54: 246618 | AK54: 109359 | AM54: 218718 | AO54: 100059 | AQ54: 218718 | AS54: 109359 | AU54: 0 | AW54: 0
